Workbook

Sheet Scenario_Current_Demand
B3: Scenario: current electricity demand
B6: Electricity demand | G6: 2010 | H6: 2011 | I6: 2012 | J6: 2013 | K6: 2014 | L6: 2015 | M6: 2016 | N6: 2017 | O6: 2018 | P6: 2019 | Q6: 2020 | R6: 2021 | S6: 2022 | T6: 2023 | U6: 2024 | V6: 2025 | W6: 2026 | X6: 2027 | Y6: 2028 | Z6: 2029 | AA6: 2030
B7: Electricity demand [MWh] | G7: 5814019.035 | H7: 6301852.262 | I7: 6604327.164 | J7: 7012819.377 | K7: 7477658.063 | L7: 7945921.687 | M7: 8377847.314 | N7: 8613743.881 | O7: 9096484.101 | P7: 9861641.278 | Q7: 10650466.03 | R7: 11767871.01 | S7: 12509304.04 | T7: 13292004.04 | U7: 14119084.04 | V7: 14992914.04 | W7: 15915934.04 | X7: 16890764.04 | Y7: 17920144.04 | Z7: 19006944.04 | AA7: 20154224.04
B8: Transmission and distribution losses [%] | O8: 0.04 | P8: 0.04 | Q8: 0.04 | R8: 0.04 | S8: 0.04 | T8: 0.04 | U8: 0.04 | V8: 0.04 | W8: 0.04 | X8: 0.04 | Y8: 0.04 | Z8: 0.04 | AA8: 0.04
B9: Total electricity demand [MWh] | G9: =+G12 -> 6085440.865 | H9: =+H12 -> 6592941.533 | I9: 6861925.926 | J9: 7286833.036 | K9: 7743488.703 | L9: 8248316.823 | M9: 8669522.259 | N9: 8890377.237 | O9: =+O7/(1-O8) -> 9475504.271 | P9: =+P7/(1-P8) -> 10272543 | Q9: 11094235.45 | R9: 12258198.97 | S9: 13030525.04 | T9: 13845837.54 | U9: 14707379.21 | V9: 15617618.79 | W9: 16579097.96 | X9: 17594545.87 | Y9: 18666816.71 | Z9: 19798900.04 | AA9: 20993983.37
O11: =+O12-O9 -> 0 | P11: =+P12-P9 -> 0 | Q11: 0 | R11: 0 | S11: 0 | T11: 0 | U11: 0 | V11: 0 | W11: 0 | X11: 0 | Y11: 0 | Z11: 0 | AA11: =+AA12-AA9 -> 0
B12: Total generation [MWh] | G12: =+G118+G190+G262+G270 -> 6085440.865 | H12: 6592941.533 | I12: 6861925.926 | J12: 7286833.036 | K12: 7743488.703 | L12: 8248316.823 | M12: 8669522.259 | N12: 8890377.237 | O12: =+O118+O190+O262+O270+O28+O45+O72+O90+O107 -> 9475504.271 | P12: 10272543 | Q12: 11094235.45 | R12: 12258198.97 | S12: 13030525.04 | T12: 13845837.54 | U12: 14707379.21 | V12: 15617618.79 | W12: 16579097.96 | X12: 17594545.87 | Y12: 18666816.71 | Z12: 19798900.04 | AA12: 20993983.37
B13: Renewable energy generation [MWh] | G13: =+G190+G262+G270 -> 2209585.15 | H13: =+H190+H262+H270 -> 2388145.984 | I13: 2386578.665 | J13: 2594391.147 | K13: 2317460.239 | L13: 2530134.785 | M13: 1811708.955 | N13: 2334294.747 | O13: =+O45+O72+O90+O107+O190+O262+O270 -> 3176644.459 | P13: 3678816.595 | Q13: 4047174.595 | R13: 6349740.595 | S13: 6349740.595 | T13: 6349740.595 | U13: 6349740.595 | V13: 6349740.595 | W13: 6349740.595 | X13: 6349740.595 | Y13: 6349740.595 | Z13: 7444740.595 | AA13: 7838940.595
B14: Fraction renewable energy [%] | G14: =+G13/G12 -> 0.3630936852 | H14: =+H13/H12 -> 0.3622276903 | I14: 0.3478001207 | J14: 0.3560382315 | K14: 0.2992785716 | L14: 0.3067455869 | M14: 0.2089744857 | N14: 0.2625641956 | O14: 0.3352480636 | P14: 0.3581213139 | Q14: 0.3647997748 | R14: 0.5179994722 | S14: 0.487297371 | T14: 0.4586028528 | U14: 0.4317384155 | V14: 0.4065754633 | W14: 0.3829967476 | X14: 0.3608925539 | Y14: 0.3401619406 | Z14: 0.3760178889 | AA14: 0.3733898639
B15: Fossil fuel based generation [MWh] | G15: =+G118 -> 3875855.715 | H15: 4204795.55 | I15: 4475347.261 | J15: 4692441.889 | K15: 5426028.464 | L15: 5718182.038 | M15: 6857813.304 | N15: 6556082.49 | O15: =+O28+O118 -> 6298859.813 | P15: 6593726.402 | Q15: 7047060.857 | R15: 5908458.372 | S15: 6680784.445 | T15: 7496096.945 | U15: 8357638.611 | V15: 9267878.195 | W15: 10229357.36 | X15: 11244805.28 | Y15: 12317076.11 | Z15: 12354159.44 | AA15: 13155042.78
B16: Fraction fossil fuels [%] | G16: =+G15/G12 -> 0.6369063148 | H16: =+H15/H12 -> 0.6377723097 | I16: 0.6521998793 | J16: 0.6439617685 | K16: 0.7007214284 | L16: 0.6932544131 | M16: 0.7910255143 | N16: 0.7374358044 | O16: 0.6647519364 | P16: 0.6418786861 | Q16: 0.6352002252 | R16: 0.4820005278 | S16: 0.512702629 | T16: 0.5413971472 | U16: 0.5682615845 | V16: 0.5934245367 | W16: 0.6170032524 | X16: 0.6391074461 | Y16: 0.6598380594 | Z16: 0.6239821111 | AA16: 0.6266101361
B18: Grid emission factor
B19: Greenhouse gas emissions [tCO2e] | G19: =+[16]OM_EF_2010!H23 -> 2367600.802 | H19: =+[16]OM_EF_2011!H22 -> 2563443.554 | I19: =+[16]OM_EF_2012!H22 -> 2817609.709 | J19: =+[16]OM_EF_2013!H22 -> 2778715.357 | K19: =+[16]OM_EF_2014!H22 -> 3227014.123 | L19: =+[16]OM_EF_2015!H22 -> 3281998.242 | M19: =+[16]OM_EF_2016!H23 -> 4027512.386 | N19: =+[16]OM_EF_2017!H22 -> 3757647.583 | O19: =+SUMPRODUCT($F$119:$F$186,O119:O186)+SUMPRODUCT($F$29:$F$42,O29:O42) -> 3593345.083 | P19: 2590778.177 | Q19: 2689917.244 | R19: 2255303.932 | S19: 2550106.725 | T19: 2861317.767 | U19: 3190174.837 | V19: 3546148.309 | W19: 4030417.916 | X19: 4620177.049 | Y19: 5303607.902 | Z19: 5329647.882 | AA19: 5846583.669
B20: Average operting margin emission factor [tCO2e/MWh] | G20: =+'[16]Grid-EF'!H9 -> 0.3890598651 | H20: =+'[16]Grid-EF'!I9 -> 0.3888163639 | I20: =+'[16]Grid-EF'!J9 -> 0.4106149992 | J20: =+'[16]Grid-EF'!K9 -> 0.3813337486 | K20: =+'[16]Grid-EF'!L9 -> 0.4167390497 | L20: =+'[16]Grid-EF'!M9 -> 0.3978991486 | M20: =+'[16]Grid-EF'!N9 -> 0.4645598991 | N20: =+'[16]Grid-EF'!O9 -> 0.4226139263 | O20: =+O19/O12 -> 0.3792246808 | P20: =+P19/P12 -> 0.2522041697 | Q20: 0.2424608037 | R20: 0.1839833028 | S20: 0.1957025305 | T20: 0.2066554485 | U20: 0.2169098105 | V20: 0.2270607547 | W20: 0.2431023646 | X20: 0.262591435 | Y20: 0.2841195682 | Z20: 0.2691890899 | AA20: 0.2784885348
B21: Simple operating margin emission factor [tCO2e/MWh] | G21: =+G19/G15 -> 0.6108588596 | H21: =+H19/H15 -> 0.6096476093 | I21: 0.6295845986 | J21: 0.5921683044 | K21: 0.5947285652 | L21: 0.573958335 | M21: 0.5872881351 | N21: 0.5731544088 | O21: 0.5704754812 | P21: 0.3929156321 | Q21: 0.3817076791 | R21: 0.3817076791 | S21: 0.3817076791 | T21: 0.3817076791 | U21: 0.3817076791 | V21: 0.3826278501 | W21: 0.3940049969 | X21: 0.4108721258 | Y21: 0.4305898457 | Z21: 0.4314051398 | AA21: 0.44443669
B24: Capacity additions 2018 - 2030
G26: 2010 | H26: 2011 | I26: 2012 | J26: 2013 | K26: 2014 | L26: 2015 | M26: 2016 | N26: 2017 | O26: 2018 | P26: 2019 | Q26: 2020 | R26: 2021 | S26: 2022 | T26: 2023 | U26: 2024 | V26: 2025 | W26: 2026 | X26: 2027 | Y26: 2028 | Z26: 2029 | AA26: 2030
B27: Plant Unit | C27: Commissioning date | D27: Capacity [MW] | E27: Capacity factor | F27: Emission factor [tCO2/MWh] | G27: Generation [MWh] | H27: Generation [MWh] | I27: Generation [MWh] | J27: Generation [MWh] | K27: Generation [MWh] | L27: Generation [MWh] | M27: Generation [MWh] | N27: Generation [MWh] | O27: Generation [MWh] | P27: Generation [MWh] | Q27: Generation [MWh] | R27: Generation [MWh] | S27: Generation [MWh] | T27: Generation [MWh] | U27: Generation [MWh] | V27: Generation [MWh] | W27: Generation [MWh] | X27: Generation [MWh] | Y27: Generation [MWh] | Z27: Generation [MWh] | AA27: Generation [MWh]
B28: Natural gas | O28: =SUM(O29:O42) -> 0 | P28: 5794004.16 | Q28: 7047060.857 | R28: 5908458.372 | S28: 6680784.445 | T28: 7496096.945 | U28: 8357638.611 | V28: 9078793.92 | W28: 9078793.92 | X28: 9078793.92 | Y28: 9078793.92 | Z28: 9078793.92 | AA28: 9078793.92
B29: Entre Ríos
B30: CCERI3 | C30: 2019 | D30: 136.4 | E30: 0.7 | F30: =+'[16]GHG-ER'!J29 -> 0.3817076791 | P30: =+$D30*8760*$E30 -> 836404.8 | U30: 115249.4913 | V30: =+$D30*8760*$E30 -> 836404.8 | W30: 836404.8 | X30: 836404.8 | Y30: 836404.8 | Z30: 836404.8 | AA30: 836404.8
B31: CCERI4 | C31: 2019 | D31: 136.4 | E31: 0.7 | F31: =+'[16]GHG-ER'!J30 -> 0.3817076791 | P31: =+$D31*8760*$E31 -> 836404.8 | T31: 90112.62459 | U31: 836404.8 | V31: 836404.8 | W31: 836404.8 | X31: 836404.8 | Y31: 836404.8 | Z31: 836404.8 | AA31: 836404.8
B32: CCERI5 | C32: 2019 | D32: 136.4 | E32: 0.7 | F32: =+'[16]GHG-ER'!J31 -> 0.3817076791 | P32: =+$D32*8760*$E32 -> 836404.8 | Q32: 477481.337 | S32: 111204.9246 | T32: 836404.8 | U32: 836404.8 | V32: 836404.8 | W32: 836404.8 | X32: 836404.8 | Y32: 836404.8 | Z32: 836404.8 | AA32: 836404.8
B33: Del Sur
B34: CCSUR1 | C34: 2020 | D34: 132.69 | E34: 0.7 | F34: =+F36 -> 0.3817076791 | Q34: =+$D34*8760*$E34 -> 813655.08 | R34: 152533.9317 | S34: =+$D34*8760*$E34 -> 813655.08 | T34: 813655.08 | U34: 813655.08 | V34: 813655.08 | W34: 813655.08 | X34: 813655.08 | Y34: 813655.08 | Z34: 813655.08 | AA34: 813655.08
B35: CCSUR2 | C35: 2020 | D35: 132.69 | E35: 0.7 | F35: =+F36 -> 0.3817076791 | Q35: =+$D35*8760*$E35 -> 813655.08 | R35: 813655.08 | S35: 813655.08 | T35: 813655.08 | U35: 813655.08 | V35: 813655.08 | W35: 813655.08 | X35: 813655.08 | Y35: 813655.08 | Z35: 813655.08 | AA35: 813655.08
B36: CCSUR3 | C36: 2019 | D36: 132.69 | E36: 0.7 | F36: =+'[16]GHG-ER'!J25 -> 0.3817076791 | P36: =+$D36*8760*$E36 -> 813655.08 | Q36: =+$D36*8760*$E36 -> 813655.08 | R36: 813655.08 | S36: 813655.08 | T36: 813655.08 | U36: 813655.08 | V36: 813655.08 | W36: 813655.08 | X36: 813655.08 | Y36: 813655.08 | Z36: 813655.08 | AA36: 813655.08
B37: CCSUR4 | C37: 2019 | D37: 132.69 | E37: 0.7 | F37: =+'[16]GHG-ER'!J26 -> 0.3817076791 | P37: =+$D37*8760*$E37 -> 813655.08 | Q37: 813655.08 | R37: 813655.08 | S37: 813655.08 | T37: 813655.08 | U37: 813655.08 | V37: 813655.08 | W37: 813655.08 | X37: 813655.08 | Y37: 813655.08 | Z37: 813655.08 | AA37: 813655.08
B38: Warnes
B39: CCWAR1 | C39: 2020 | D39: 135.15 | E39: 0.7 | F39: =+F41 -> 0.3817076791 | Q39: =+$D39*8760*$E39 -> 828739.8 | R39: =+$D39*8760*$E39 -> 828739.8 | S39: 828739.8 | T39: 828739.8 | U39: 828739.8 | V39: 828739.8 | W39: 828739.8 | X39: 828739.8 | Y39: 828739.8 | Z39: 828739.8 | AA39: 828739.8
B40: CCWAR2 | C40: 2020 | D40: 135.15 | E40: 0.7 | F40: =+F41 -> 0.3817076791 | Q40: 828739.8 | R40: 828739.8 | S40: 828739.8 | T40: 828739.8 | U40: 828739.8 | V40: 828739.8 | W40: 828739.8 | X40: 828739.8 | Y40: 828739.8 | Z40: 828739.8 | AA40: 828739.8
B41: CCWAR3 | C41: 2019 | D41: 135.15 | E41: 0.7 | F41: =+'[16]GHG-ER'!J27 -> 0.3817076791 | P41: =+$D41*8760*$E41 -> 828739.8 | Q41: 828739.8 | R41: 828739.8 | S41: 828739.8 | T41: 828739.8 | U41: 828739.8 | V41: 828739.8 | W41: 828739.8 | X41: 828739.8 | Y41: 828739.8 | Z41: 828739.8 | AA41: 828739.8
B42: CCWAR4 | C42: 2019 | D42: 135.15 | E42: 0.7 | F42: =+'[16]GHG-ER'!J28 -> 0.3817076791 | P42: =+$D42*8760*$E42 -> 828739.8 | Q42: 828739.8 | R42: 828739.8 | S42: 828739.8 | T42: 828739.8 | U42: 828739.8 | V42: 828739.8 | W42: 828739.8 | X42: 828739.8 | Y42: 828739.8 | Z42: 828739.8 | AA42: 828739.8
B44: Plant Unit | C44: Commissioning date | D44: Capacity [MW] | E44: Capacity factor | G44: Generation [MWh] | H44: Generation [MWh] | I44: Generation [MWh] | J44: Generation [MWh] | K44: Generation [MWh] | L44: Generation [MWh] | M44: Generation [MWh] | N44: Generation [MWh] | O44: Generation [MWh] | P44: Generation [MWh] | Q44: Generation [MWh] | R44: Generation [MWh] | S44: Generation [MWh] | T44: Generation [MWh] | U44: Generation [MWh] | V44: Generation [MWh] | W44: Generation [MWh] | X44: Generation [MWh] | Y44: Generation [MWh] | Z44: Generation [MWh] | AA44: Generation [MWh]
B45: Hydropower | O45: =SUM(O47:O68) -> 240900 | P45: =SUM(P47:P68) -> 543120 | Q45: 543120 | R45: 2707716 | S45: 2707716 | T45: 2707716 | U45: 2707716 | V45: 2707716 | W45: 2707716 | X45: 2707716 | Y45: 2707716 | Z45: =SUM(Z47:Z68) -> 3802716 | AA45: 4196916
B46: San José
B47: San Jose I | C47: 2018 | D47: 55 | E47: 0.5 | O47: =+$D47*8760*$E47 -> 240900 | P47: =+$D47*8760*$E47 -> 240900 | Q47: 240900 | R47: 240900 | S47: 240900 | T47: 240900 | U47: 240900 | V47: 240900 | W47: 240900 | X47: 240900 | Y47: 240900 | Z47: 240900 | AA47: 240900
B48: San José II | C48: 2019 | D48: 69 | E48: 0.5 | P48: 302220 | Q48: 302220 | R48: 302220 | S48: 302220 | T48: 302220 | U48: 302220 | V48: 302220 | W48: 302220 | X48: 302220 | Y48: 302220 | Z48: 302220 | AA48: 302220
B49: Sehuencas
B50: Sehuencas | C50: 2021 | D50: 198.6 | E50: 0.5 | R50: =+$D50*8760*$E50 -> 869868 | S50: 869868 | T50: 869868 | U50: 869868 | V50: 869868 | W50: 869868 | X50: 869868 | Y50: 869868 | Z50: 869868 | AA50: 869868
B51: Juntas
B52: Juntas | C52: 2021 | D52: 91.6 | E52: 0.5 | R52: 401208 | S52: 401208 | T52: 401208 | U52: 401208 | V52: 401208 | W52: 401208 | X52: 401208 | Y52: 401208 | Z52: 401208 | AA52: 401208
B53: Umapalca
B54: Umapalca | C54: 2021 | D54: 85.8 | E54: 0.5 | R54: 375804 | S54: 375804 | T54: 375804 | U54: 375804 | V54: 375804 | W54: 375804 | X54: 375804 | Y54: 375804 | Z54: 375804 | AA54: 375804
B55: Palillada
B56: Palillada | C56: 2021 | D56: 118.2 | E56: 0.5 | R56: =+$D56*8760*$E56 -> 517716 | S56: 517716 | T56: 517716 | U56: 517716 | V56: 517716 | W56: 517716 | X56: 517716 | Y56: 517716 | Z56: 517716 | AA56: 517716
B57: Hydro A
B58: Hidro A | C58: 2029 | D58: 250 | E58: 0.5 | Z58: =$D$58*8760*$E$58 -> 1095000 | AA58: =$D$58*8760*$E$58 -> 1095000
B59: Hydro B
B60: Hidro B | C60: 2030 | D60: 90 | E60: 0.5 | AA60: =$D$60*8760*$E$60 -> 394200
B61: Hydro C
B62: Hidro C
B63: Hydro D
B64: Hidro D
B65: Hydro E
B66: Hidro E
B67: Hydro F
B68: Hidro F
B71: Plant Unit | C71: Commissioning date | D71: Capacity [MW] | E71: Capacity factor | G71: Generation [MWh] | H71: Generation [MWh] | I71: Generation [MWh] | J71: Generation [MWh] | K71: Generation [MWh] | L71: Generation [MWh] | M71: Generation [MWh] | N71: Generation [MWh] | O71: Generation [MWh] | P71: Generation [MWh] | Q71: Generation [MWh] | R71: Generation [MWh] | S71: Generation [MWh] | T71: Generation [MWh] | U71: Generation [MWh] | V71: Generation [MWh] | W71: Generation [MWh] | X71: Generation [MWh] | Y71: Generation [MWh] | Z71: Generation [MWh] | AA71: Generation [MWh]
B72: Wind | G72: =+SUM(G73:G75) -> 0 | H72: =+SUM(H73:H75) -> 0 | I72: =+SUM(I73:I75) -> 0 | J72: 0 | K72: 0 | L72: 0 | M72: 0 | N72: =+SUM(N73:N75) -> 0 | O72: =+SUM(O73:O87) -> 0 | P72: =+SUM(P73:P87) -> 0 | Q72: 331128 | R72: 469098 | S72: 469098 | T72: 469098 | U72: 469098 | V72: 469098 | W72: 469098 | X72: 469098 | Y72: 469098 | Z72: 469098 | AA72: 469098
B73: El Dorado
B74: El Dorado | C74: 2020 | D74: 54 | E74: 0.35 | Q74: =+$D74*8760*$E74 -> 165564 | R74: =+$D74*8760*$E74 -> 165564 | S74: 165564 | T74: 165564 | U74: 165564 | V74: 165564 | W74: 165564 | X74: 165564 | Y74: 165564 | Z74: 165564 | AA74: 165564
B75: La Ventolera
B76: La Ventolera | C76: 2021 | D76: 24 | E76: 0.35 | R76: =+$D76*8760*$E76 -> 73584 | S76: 73584 | T76: 73584 | U76: 73584 | V76: 73584 | W76: 73584 | X76: 73584 | Y76: 73584 | Z76: 73584 | AA76: 73584
B77: San Julián
B78: San Julián | C78: 2020 | D78: 39.6 | E78: 0.35 | Q78: =+$D78*8760*$E78 -> 121413.6 | R78: 121413.6 | S78: 121413.6 | T78: 121413.6 | U78: 121413.6 | V78: 121413.6 | W78: 121413.6 | X78: 121413.6 | Y78: 121413.6 | Z78: 121413.6 | AA78: 121413.6
B79: Warnes
B80: Warnes I | C80: 2020 | D80: 14.4 | E80: 0.35 | Q80: =+$D80*8760*$E80 -> 44150.4 | R80: 44150.4 | S80: 44150.4 | T80: 44150.4 | U80: 44150.4 | V80: 44150.4 | W80: 44150.4 | X80: 44150.4 | Y80: 44150.4 | Z80: 44150.4 | AA80: 44150.4
B81: Warnes II | C81: 2021 | D81: 21 | E81: 0.35 | R81: 64386 | S81: 64386 | T81: 64386 | U81: 64386 | V81: 64386 | W81: 64386 | X81: 64386 | Y81: 64386 | Z81: 64386 | AA81: 64386
B82: Wind A
B83: Wind A
B84: Wind B
B85: Wind B
B86: Wind C
B87: Wind C
B89: Plant Unit | C89: Commissioning date | D89: Capacity [MW] | E89: Capacity factor | G89: Generation [MWh] | H89: Generation [MWh] | I89: Generation [MWh] | J89: Generation [MWh] | K89: Generation [MWh] | L89: Generation [MWh] | M89: Generation [MWh] | N89: Generation [MWh] | O89: Generation [MWh] | P89: Generation [MWh] | Q89: Generation [MWh] | R89: Generation [MWh] | S89: Generation [MWh] | T89: Generation [MWh] | U89: Generation [MWh] | V89: Generation [MWh] | W89: Generation [MWh] | X89: Generation [MWh] | Y89: Generation [MWh] | Z89: Generation [MWh] | AA89: Generation [MWh]
B90: Solar PV | G90: =+SUM(G91:G95) -> 0 | H90: 0 | I90: 0 | J90: 0 | K90: 0 | L90: 0 | M90: 0 | N90: 0 | O90: =+SUM(O91:O104) -> 136656 | P90: =+SUM(P91:P104) -> 346896 | Q90: 346896 | R90: 346896 | S90: 346896 | T90: 346896 | U90: 346896 | V90: 346896 | W90: 346896 | X90: 346896 | Y90: 346896 | Z90: 346896 | AA90: 346896
B91: Oruro
B92: Oruro I | C92: 2019 | D92: 50 | E92: 0.24 | P92: =+$D92*8760*$E92 -> 105120 | Q92: 105120 | R92: 105120 | S92: 105120 | T92: 105120 | U92: 105120 | V92: 105120 | W92: 105120 | X92: 105120 | Y92: 105120 | Z92: 105120 | AA92: 105120
B93: Oruro
B94: Oruro I | C94: 2019 | D94: 50 | E94: 0.24 | P94: 105120 | Q94: 105120 | R94: 105120 | S94: 105120 | T94: 105120 | U94: 105120 | V94: 105120 | W94: 105120 | X94: 105120 | Y94: 105120 | Z94: 105120 | AA94: 105120
B95: Uyuni
B96: Uyuni | C96: 2018 | D96: 60 | E96: 0.24 | O96: =+$D96*8760*$E96 -> 126144 | P96: 126144 | Q96: 126144 | R96: 126144 | S96: 126144 | T96: 126144 | U96: 126144 | V96: 126144 | W96: 126144 | X96: 126144 | Y96: 126144 | Z96: 126144 | AA96: 126144
B97: Yunchará
B98: Yunchará | C98: 2018 | D98: 5 | E98: 0.24 | O98: =+$D98*8760*$E98 -> 10512 | P98: 10512 | Q98: 10512 | R98: 10512 | S98: 10512 | T98: 10512 | U98: 10512 | V98: 10512 | W98: 10512 | X98: 10512 | Y98: 10512 | Z98: 10512 | AA98: 10512
B99: Solar A
B100: Solar A
B101: Solar B
B102: Solar B
B103: Solar C
B104: Solar C
B106: Plant Unit | C106: Commissioning date | D106: Capacity [MW] | E106: Capacity factor | G106: Generation [MWh] | H106: Generation [MWh] | I106: Generation [MWh] | J106: Generation [MWh] | K106: Generation [MWh] | L106: Generation [MWh] | M106: Generation [MWh] | N106: Generation [MWh] | O106: Generation [MWh] | P106: Generation [MWh] | Q106: Generation [MWh] | R106: Generation [MWh] | S106: Generation [MWh] | T106: Generation [MWh] | U106: Generation [MWh] | V106: Generation [MWh] | W106: Generation [MWh] | X106: Generation [MWh] | Y106: Generation [MWh] | Z106: Generation [MWh] | AA106: Generation [MWh]
B107: Geothermal | G107: =+SUM(G108:G113) -> 0 | H107: =+SUM(H108:H113) -> 0 | I107: =+SUM(I108:I113) -> 0 | J107: 0 | K107: 0 | L107: 0 | M107: 0 | N107: =+SUM(N108:N113) -> 0 | O107: =+SUM(O108:O111) -> 0 | P107: =+SUM(P108:P111) -> 0 | Q107: 37230 | R107: 37230 | S107: 37230 | T107: 37230 | U107: 37230 | V107: 37230 | W107: 37230 | X107: 37230 | Y107: 37230 | Z107: 37230 | AA107: 37230
B108: Laguna Colorada
B109: Laguna Colorada | C109: 2020 | D109: 5 | E109: 0.85 | Q109: =+$D109*8760*$E109 -> 37230 | R109: =+$D109*8760*$E109 -> 37230 | S109: 37230 | T109: 37230 | U109: 37230 | V109: 37230 | W109: 37230 | X109: 37230 | Y109: 37230 | Z109: 37230 | AA109: 37230
B110: GEO A
B111: GEO A
B114: Existing plants
G116: 2010 | H116: 2011 | I116: 2012 | J116: 2013 | K116: 2014 | L116: 2015 | M116: 2016 | N116: 2017 | O116: 2018 | P116: 2019 | Q116: 2020 | R116: 2021 | S116: 2022 | T116: 2023 | U116: 2024 | V116: 2025 | W116: 2026 | X116: 2027 | Y116: 2028 | Z116: 2029 | AA116: 2030
B117: Plant Unit | F117: Emission factor (2017) [tCO2/MWh] | G117: Generation [MWh] | H117: Generation [MWh] | I117: Generation [MWh] | J117: Generation [MWh] | K117: Generation [MWh] | L117: Generation [MWh] | M117: Generation [MWh] | N117: Generation [MWh] | O117: Generation [MWh] | P117: Generation [MWh] | Q117: Generation [MWh] | R117: Generation [MWh] | S117: Generation [MWh] | T117: Generation [MWh] | U117: Generation [MWh] | V117: Generation [MWh] | W117: Generation [MWh] | X117: Generation [MWh] | Y117: Generation [MWh] | Z117: Generation [MWh] | AA117: Generation [MWh]
B118: Natural gas | G118: =SUM(G119:G186) -> 3875855.715 | H118: 4204795.55 | I118: 4475347.261 | J118: 4692441.889 | K118: 5426028.464 | L118: 5718182.038 | M118: 6857813.304 | N118: =SUM(N119:N186) -> 6556082.49 | O118: =SUM(O119:O186) -> 6298859.813 | P118: 799722.2424 | Q118: 0 | R118: 0 | S118: 0 | T118: 0 | U118: 0 | V118: 189084.2746 | W118: 1150563.441 | X118: 2166011.358 | Y118: 3238282.191 | Z118: 3275365.525 | AA118: =SUM(AA119:AA186) -> 4076248.858
B119: El Alto | F119: =+[16]OM_EF_2017!G23 -> 0
B120: ALT1 | F120: =+[16]OM_EF_2017!G24 -> 0.5643047003 | G120: 0 | H120: 0 | I120: 57810.7089 | J120: 107684.098 | K120: 108265.7625 | L120: 62901.0717 | M120: 100635.927 | N120: 49236.5229 | O120: =+AVERAGE($L$120:$N$120) -> 70924.5072 | W120: 52910.75454 | X120: =+AVERAGE($L$120:$N$120) -> 70924.5072 | Y120: 70924.5072 | Z120: 70924.5072 | AA120: 70924.5072
B121: ALT2 | F121: =+[16]OM_EF_2017!G25 -> 0.4944620795 | G121: 0 | H121: 0 | I121: 0 | J121: 103575.9891 | K121: 74350.10655 | L121: 230006.7025 | M121: 213864.514 | N121: 148687.6958 | O121: =+AVERAGE($L$121:$N$121) -> 197519.6374 | P121: =+AVERAGE($L$121:$N$121) -> 197519.6374 | W121: =+AVERAGE($L$121:$N$121) -> 197519.6374 | X121: 197519.6374 | Y121: 197519.6374 | Z121: 197519.6374 | AA121: 197519.6374
B122: Aranjuez | F122: =+[16]OM_EF_2017!G26 -> 0
B123: ARJ1 | F123: =+[16]OM_EF_2017!G27 -> 0.6037835376 | G123: 0 | H123: 1295.25873 | I123: 6370.205515 | J123: 1574.993684 | K123: 5457.598282 | L123: 903.1293569 | M123: 2065.398746 | N123: 511.0025 | Y123: =+AVERAGE($L$123:$N$123) -> 1159.843534 | Z123: 1159.843534 | AA123: 1159.843534
B124: ARJ2 | F124: =+[16]OM_EF_2017!G28 -> 0.6037835376 | G124: 7078.176123 | H124: 6630.80579 | I124: 0 | J124: 0 | K124: 1826.328269 | L124: 911.2479539 | M124: 2494.435346 | N124: 148.1945 | O124: =+AVERAGE($L$124:$N$124) -> 1184.625933 | Y124: =+AVERAGE($L$124:$N$124) -> 1184.625933 | Z124: 1184.625933 | AA124: 1184.625933
B125: ARJ3 | F125: =+[16]OM_EF_2017!G29 -> 0.6037835376 | G125: 6933.803202 | H125: 3921.550401 | I125: 7512.44944 | J125: 1769.8755 | K125: 5453.138 | L125: 742.6815 | M125: 3046.812 | N125: 740.5125 | O125: =+AVERAGE($L$125:$N$125) -> 1510.002 | Y125: =+AVERAGE($L$125:$N$125) -> 1510.002 | Z125: 1510.002 | AA125: 1510.002
B126: ARJ5 | G126: 0 | H126: 0 | I126: 0 | J126: 0 | K126: 0 | L126: 0 | M126: 0 | N126: 0 | O126: =+AVERAGE(L126:N126) -> 0 | P126: =+O126 -> 0 | Q126: 0 | R126: 0 | S126: 0 | T126: 0 | U126: 0 | V126: 0 | W126: 0 | X126: 0 | Y126: 0 | Z126: 0 | AA126: 0
B127: ARJ6 | G127: 2.1599455 | H127: 0 | I127: 0 | J127: 0 | K127: 0 | L127: 0 | M127: 0 | N127: 0 | O127: 0 | P127: 0 | Q127: 0 | R127: 0 | S127: 0 | T127: 0 | U127: 0 | V127: 0 | W127: 0 | X127: 0 | Y127: 0 | Z127: 0 | AA127: 0
B128: ARJ8 | F128: =+[16]OM_EF_2017!G30 -> 0.6804920431 | G128: 128803.56 | H128: 132236.64 | I128: 116890.92 | J128: 106260.78 | K128: 105427.86 | L128: 83446.76 | M128: 101154.24 | N128: 139685.16 | O128: =+AVERAGE($L$128:$N$128) -> 108095.3867 | Y128: =+AVERAGE($L$128:$N$128) -> 108095.3867 | Z128: 108095.3867 | AA128: 108095.3867
B129: ARJ9 | F129: =+[16]OM_EF_2017!G31 -> 0.535657388 | G129: 8515.644332 | H129: 9389.035841 | I129: 1184.838632 | J129: 338.88614 | K129: 10782.3011 | L129: 8423.39897 | M129: 10825.28304 | N129: 697.12325 | O129: =+AVERAGE($L$129:$N$129) -> 6648.601753 | W129: =+AVERAGE($L$129:$N$129) -> 6648.601753 | X129: 6648.601753 | Y129: 6648.601753 | Z129: 6648.601753 | AA129: 6648.601753
B130: ARJ10 | F130: =+[16]OM_EF_2017!G32 -> 0.535657388 | G130: 5375.3301 | H130: 6762.75858 | I130: 8797.995819 | J130: 4904.84453 | K130: 2009.37959 | L130: 0 | M130: 0 | N130: 0 | O130: 0 | P130: =+O130 -> 0 | Q130: 0 | R130: 0 | S130: 0 | T130: 0 | U130: 0 | V130: 0 | W130: 0 | X130: 0 | Y130: 0 | Z130: 0 | AA130: 0
B131: ARJ11 | F131: =+[16]OM_EF_2017!G33 -> 0.535657388 | G131: 5023.210781 | H131: 0 | I131: 8208.257779 | J131: 9655.36312 | K131: 5505.76371 | L131: 4874.09304 | M131: 10874.30593 | N131: 657.711895 | O131: =+AVERAGE($L$131:$N$131) -> 5468.703622 | W131: =+AVERAGE($L$131:$N$131) -> 5468.703622 | X131: 5468.703622 | Y131: 5468.703622 | Z131: 5468.703622 | AA131: 5468.703622
B132: ARJ12 | F132: =+[16]OM_EF_2017!G34 -> 0.535657388 | G132: 2147.392315 | H132: 6196.934516 | I132: 11548.43109 | J132: 11349.07458 | K132: 9975.93413 | L132: 7073.216074 | M132: 0 | N132: 0 | O132: 0 | P132: =+O132 -> 0 | Q132: 0 | R132: 0 | S132: 0 | T132: 0 | U132: 0 | V132: 0 | W132: 0 | X132: 0 | Y132: 0 | Z132: 0 | AA132: 0
B133: ARJ13 | F133: =+[16]OM_EF_2017!G35 -> 0.535657388 | G133: 8526.900641 | H133: 8851.283968 | I133: 10087.29019 | J133: 9758.3664 | K133: 4970.5612 | L133: 5371.6202 | M133: 0 | N133: 0 | O133: 0 | P133: 0 | Q133: 0 | R133: 0 | S133: 0 | T133: 0 | U133: 0 | V133: 0 | W133: 0 | X133: 0 | Y133: 0 | Z133: 0 | AA133: 0
B134: ARJ14 | F134: =+[16]OM_EF_2017!G36 -> 0.535657388 | G134: 7797.82554 | H134: 10123.33607 | I134: 9538.652815 | J134: 2570.0208 | K134: 7007.9094 | L134: 0 | M134: 0 | N134: 0 | O134: 0 | P134: 0 | Q134: 0 | R134: 0 | S134: 0 | T134: 0 | U134: 0 | V134: 0 | W134: 0 | X134: 0 | Y134: 0 | Z134: 0 | AA134: 0
B135: ARJ15 | F135: =+[16]OM_EF_2017!G37 -> 0.535657388 | G135: 0 | H135: 4892.938408 | I135: 11580.99053 | J135: 10493.6892 | K135: 9947.2014 | L135: 7564.2672 | M135: 8339.7396 | N135: 474.077 | O135: =+AVERAGE($L$135:$N$135) -> 5459.361267 | W135: =+AVERAGE($L$135:$N$135) -> 5459.361267 | X135: 5459.361267 | Y135: 5459.361267 | Z135: 5459.361267 | AA135: 5459.361267
B136: Bulo Bulo | F136: =+[16]OM_EF_2017!G38 -> 0
B137: BUL1 | F137: =+[16]OM_EF_2017!G39 -> 0.5329347096 | G137: 320717 | H137: 327166 | I137: 106480 | J137: 287973.534 | K137: 269807.618 | L137: 253280.231 | M137: 223504.631 | N137: 237695.821 | O137: =+AVERAGE($L$137:$N$137) -> 238160.2277 | W137: =+AVERAGE($L$137:$N$137) -> 238160.2277 | X137: 238160.2277 | Y137: 238160.2277 | Z137: 238160.2277 | AA137: 238160.2277
B138: BUL2 | F138: =+[16]OM_EF_2017!G40 -> 0.5363084633 | G138: 331746 | H138: 326073 | I138: 289542 | J138: 202260.81 | K138: 173568.66 | L138: 33037.909 | M138: 15850.489 | N138: 77027.986 | O138: =+AVERAGE($L$138:$N$138) -> 41972.128 | W138: =+AVERAGE($L$138:$N$138) -> 41972.128 | X138: 41972.128 | Y138: 41972.128 | Z138: 41972.128 | AA138: 41972.128
B139: BUL3 | F139: =+[16]OM_EF_2017!G41 -> 0.5216888639 | K139: 265758.5813 | L139: 313954.442 | M139: 125500.576 | N139: 239710.459 | O139: =+AVERAGE($L$139:$N$139) -> 226388.4923 | W139: =+AVERAGE($L$139:$N$139) -> 226388.4923 | X139: 226388.4923 | Y139: 226388.4923 | Z139: 226388.4923 | AA139: 226388.4923
B140: Carrasco | F140: =+[16]OM_EF_2017!G42 -> 0.6067264812 | G140: 743118.8202 | H140: 609577.5585 | I140: 772580.2 | J140: 667630.61 | K140: 815783.94 | L140: 516330.15 | M140: 440398.86 | N140: 552699.29 | O140: =+AVERAGE($L$140:$N$140) -> 503142.7667 | AA140: =+AVERAGE($L$140:$N$140) -> 503142.7667
B141: CAR1 | F141: =+[16]OM_EF_2017!G43 -> 0.5929520125
B142: CAR2 | F142: =+[16]OM_EF_2017!G44 -> 0.6404805078
B143: CAR3 | F143: =+[16]OM_EF_2017!G45 -> 0.5608717579 | H143: 7408.708638
B144: Entre Ríos | F144: =+[16]OM_EF_2017!G46 -> 0
B145: ERI01 | F145: =+[16]OM_EF_2017!G47 -> 0.5922417486 | G145: 94768 | H145: 186730 | I145: 193238 | J145: 176801 | K145: 173128 | L145: 75240 | M145: 152450 | N145: 36192 | O145: =+AVERAGE($L$145:$N$145) -> 87960.66667 | X145: =+AVERAGE($L$145:$N$145) -> 87960.66667 | Y145: 87960.66667 | Z145: 87960.66667 | AA145: 87960.66667
B146: ERI02 | F146: =+[16]OM_EF_2017!G48 -> 0.5917090506 | G146: 123773.2823 | H146: 193364 | I146: 193432 | J146: 175773 | K146: 165138 | L146: 85293 | M146: 168623 | N146: 52744 | O146: =+AVERAGE($L$146:$N$146) -> 102220 | X146: =+AVERAGE($L$146:$N$146) -> 102220 | Y146: 102220 | Z146: 102220 | AA146: 102220
B147: ERI03 | F147: =+[16]OM_EF_2017!G49 -> 0.5917682393 | G147: 109541.1268 | H147: 170825 | I147: 196674 | J147: 195325 | K147: 173443 | L147: 74301 | M147: 182321 | N147: 60409 | O147: =+AVERAGE($L$147:$N$147) -> 105677 | X147: =+AVERAGE($L$147:$N$147) -> 105677 | Y147: 105677 | Z147: 105677 | AA147: 105677
B148: ERI04 | F148: =+[16]OM_EF_2017!G50 -> 0.5970360302 | G148: 77401.001 | H148: 187411 | I148: 183871 | J148: 186743 | K148: 193663 | L148: 89367 | M148: 182872 | N148: 46175 | O148: =+AVERAGE($L$148:$N$148) -> 106138 | X148: =+AVERAGE($L$148:$N$148) -> 106138 | Y148: 106138 | Z148: 106138 | AA148: 106138
B149: Guaracachi | F149: =+[16]OM_EF_2017!G51 -> 0
B150: GCH1 | F150: =+[16]OM_EF_2017!G52 -> 0.7085474687 | G150: 54977.58 | H150: 31424.37 | I150: 44186.28 | J150: 6585.96 | K150: 15638.4 | L150: 14091.3 | M150: 42919.2 | N150: 41459.7 | O150: =+AVERAGE($L$150:$N$150) -> 32823.4 | AA150: =+AVERAGE($L$150:$N$150) -> 32823.4
B151: GCH2 | F151: =+[16]OM_EF_2017!G53 -> 0.7454811936 | G151: 44343.57 | H151: 38362.5 | I151: 31007.91 | J151: 4921.44 | K151: 14575.08 | L151: 10209.6 | M151: 28229.76 | N151: 20603.04 | O151: =+AVERAGE($L$151:$N$151) -> 19680.8 | AA151: =+AVERAGE($L$151:$N$151) -> 19680.8
B152: GCH4 | F152: =+[16]OM_EF_2017!G54 -> 0.7596272838 | G152: 35434.59 | H152: 65185.068 | I152: 40516.368 | J152: 17730.18 | K152: 24451.464 | L152: 13814.244 | M152: 43634.928 | N152: 24144.996
B153: GCH6 | F153: =+[16]OM_EF_2017!G55 -> 0.748381438 | G153: 47583.18 | H153: 73021.77 | I153: 79926.345 | J153: 32721.12 | K153: 52400.7557 | L153: 49910.715 | M153: 73438.605 | N153: 47740.185 | O153: 11036.54888 | AA153: 36445.25758
B154: GCH7 | G154: 0 | H154: 0 | I154: 0 | J154: 0 | K154: 0 | L154: 0 | M154: 0 | N154: 0 | O154: =+AVERAGE(L154:N154) -> 0 | P154: =+O154 -> 0 | Q154: 0 | R154: 0 | S154: 0 | T154: 0 | U154: 0 | V154: 0 | W154: 0 | X154: 0 | Y154: 0 | Z154: 0 | AA154: 0
B155: GCH9 | F155: =+[16]OM_EF_2017!G56 -> 0.5960298229 | G155: 0 | H155: 0 | I155: 345670.74 | J155: 479429.598 | K155: 420127.4714 | L155: 459226.692 | M155: 240047.46 | N155: 381288.42 | O155: =+AVERAGE($L$155:$N$155) -> 360187.524 | Y155: =+AVERAGE($L$155:$N$155) -> 360187.524 | Z155: 360187.524 | AA155: 360187.524
B156: GCH10 | F156: =+[16]OM_EF_2017!G57 -> 0.5960298229 | G156: 304167.352 | H156: 362328.336 | I156: 425317.902 | J156: 461289.348 | K156: 412122.1051 | L156: 378806.544 | M156: 386168.796 | N156: 365210.388 | O156: =+AVERAGE($L$156:$N$156) -> 376728.576 | X156: 115761.7288 | Y156: =+AVERAGE($L$156:$N$156) -> 376728.576 | Z156: 376728.576 | AA156: 376728.576
B157: GCH11 | F157: =+[16]OM_EF_2017!G58 -> 0.5960298229 | G157: 274064.728 | H157: 328187.052 | I157: 215762.2583 | J157: 201328.7141 | K157: 301526.5525 | L157: 234237.2923 | M157: 299524.302 | N157: 149744.4793 | O157: =+AVERAGE($L$157:$N$157) -> 227835.3578 | X157: =+AVERAGE($L$157:$N$157) -> 227835.3578 | Y157: 227835.3578 | Z157: 227835.3578 | AA157: 227835.3578
B158: GCH12 | F158: =+[16]OM_EF_2017!G59 -> 0.4268094392 | G158: 386364.6331 | H158: 362853.2407 | I158: 369449.514 | J158: 616226.289 | K158: 523552.596 | L158: 544179.2599 | M158: 222713.652 | N158: 361213.692 | O158: =+AVERAGE($L$158:$N$158) -> 376035.5346 | P158: =+AVERAGE($L$158:$N$158) -> 376035.5346 | V158: 189084.2746 | W158: 376035.5346 | X158: 376035.5346 | Y158: 376035.5346 | Z158: 376035.5346 | AA158: 376035.5346
B159: Karachipampa | F159: =+[16]OM_EF_2017!G60 -> 0
B160: KAR1 | F160: =+[16]OM_EF_2017!G61 -> 0.7019775273 | G160: 80691.73504 | H160: 79540.578 | I160: 60267.49772 | J160: 84986.5836 | K160: 61003.53232 | L160: 79662.39755 | M160: 76545.15521 | N160: 41016.303 | O160: =+AVERAGE($L$160:$N$160) -> 65741.28526 | Z160: =+AVERAGE($L$160:$N$160) -> 65741.28526 | AA160: 65741.28526
B161: Kenko | F161: =+[16]OM_EF_2017!G62 -> 0
B162: KEN1 | F162: =+[16]OM_EF_2017!G63 -> 0.7146439009 | G162: 46977.26562 | H162: 50444.30312 | I162: 50792.9475 | J162: 25340.75831 | K162: 43520.74519 | L162: 0 | M162: 1793.82 | N162: 18.81 | O162: =+AVERAGE($L$162:$N$162) -> 604.21 | R162: 0 | S162: 0 | T162: 0 | U162: 0 | V162: 0 | W162: 0 | X162: 0 | Y162: 0 | Z162: 0 | AA162: 0
B163: KEN2 | F163: =+[16]OM_EF_2017!G64 -> 0.709198544 | G163: 47451.323 | H163: 50578.20975 | I163: 52201.957 | J163: 20555.56487 | K163: 46932.1795 | L163: 29966.794 | M163: 14728.66919 | N163: 14455.24559 | O163: =+AVERAGE($L$163:$N$163) -> 19716.90293 | R163: 0 | S163: 0 | T163: 0 | U163: 0 | V163: 0 | W163: 0 | X163: 0 | Y163: 0 | Z163: 0 | AA163: 0
B164: Santa Cruz | F164: =+[16]OM_EF_2017!G65 -> 0
B165: SCZ1 | F165: =+[16]OM_EF_2017!G66 -> 0.7013856407 | G165: 73485.585 | H165: 82841.6925 | I165: 69552.7875 | J165: 23800.9429 | K165: 44110.71 | L165: 44085.42 | M165: 76414.3515 | N165: 77133.69 | O165: =+AVERAGE($L$165:$N$165) -> 65877.8205 | Z165: =+AVERAGE($L$165:$N$165) -> 65877.8205 | AA165: 65877.8205
B166: SCZ2 | F166: =+[16]OM_EF_2017!G67 -> 0.6908500589 | G166: 86746.32 | H166: 105667.14 | I166: 63985.62 | J166: 16188.9 | K166: 29892.71113 | L166: 35185.5 | M166: 69334.6305 | N166: 64466.46 | O166: =+AVERAGE($L$166:$N$166) -> 56328.8635 | Y166: =+AVERAGE($L$166:$N$166) -> 56328.8635 | Z166: 56328.8635 | AA166: 56328.8635
B167: Del Sur | F167: =+[16]OM_EF_2017!G68 -> 0
B168: SUR01 | F168: =+[16]OM_EF_2017!G69 -> 0.5532956092 | K168: 84605.7 | L168: 283458 | M168: 327520.8056 | N168: 321801.0224 | O168: 310926.6093
B169: SUR02 | F169: =+[16]OM_EF_2017!G70 -> 0.5560182876 | K169: 129537 | L169: 256045 | M169: 313178.5303 | N169: 283832.3403 | O169: 284351.9568
B170: SUR03 | F170: =+[16]OM_EF_2017!G71 -> 0.5506913081 | K170: 108702.3 | L170: 285112 | M170: 329847.8392 | N170: 326287.4248 | O170: 313749.088
B171: SUR04 | F171: =+[16]OM_EF_2017!G72 -> 0.5503361761 | K171: 73180 | L171: 279769 | M171: 310140.643 | N171: 335050.7928 | O171: 308320.1453
B172: Valle Hermoso (VHE) | F172: =+[16]OM_EF_2017!G73 -> 0.7014771344 | G172: 412298.62 | H172: 375505.48 | I172: 441361.193 | J172: 438893.555 | K172: 458878.518 | L172: 260568.359 | M172: 431717.9446 | N172: 498992.928 | O172: =+AVERAGE($L$172:$N$172) -> 397093.0772 | Y172: 282837.7405 | Z172: 188301.9681 | AA172: =+AVERAGE($L$172:$N$172) -> 397093.0772
B173: VHE1 | F173: =+[16]OM_EF_2017!G74 -> 0.77217528
B174: VHE2 | F174: =+[16]OM_EF_2017!G75 -> 0.6957627178
B175: VHE3 | F175: =+[16]OM_EF_2017!G76 -> 0.7326964427
B176: VHE4 | F176: =+[16]OM_EF_2017!G77 -> 0.7701036769
B177: VHE5 | F177: =+[16]OM_EF_2017!G78 -> 0.6259200971
B178: VHE6 | F178: =+[16]OM_EF_2017!G79 -> 0.6288795301
B179: VHE7 | F179: =+[16]OM_EF_2017!G80 -> 0.6310695106
B180: VHE8 | F180: =+[16]OM_EF_2017!G81 -> 0.6315430199
B181: Warnes | F181: =+[16]OM_EF_2017!G82 -> 0
B182: WAR01 | F182: =+[16]OM_EF_2017!G83 -> 0.5350063128 | L182: 198822 | M182: 327476 | N182: 341340.336 | O182: =+AVERAGE(L182:N182) -> 289212.7787 | P182: 226167.0703
B183: WAR02 | F183: =+[16]OM_EF_2017!G84 -> 0.540037349 | L183: 104963 | M183: 303848 | N183: 232234.96 | O183: =+AVERAGE(L183:N183) -> 213681.9867
B184: WAR03 | F184: =+[16]OM_EF_2017!G85 -> 0.5399189717 | L184: 135385 | M184: 334360 | N184: 332215.632 | O184: 267320.2107
B185: WAR04 | F185: =+[16]OM_EF_2017!G86 -> 0.5406292356 | L185: 75984 | M185: 328445 | N185: 319457.856 | O185: 241295.6187
B186: WAR05 | F186: =+[16]OM_EF_2017!G87 -> 0.5412803109 | L186: 91678 | M186: 330964 | N186: 332882.232 | O186: =+AVERAGE($L$186:$N$186) -> 251841.4107 | X186: =+AVERAGE($L$186:$N$186) -> 251841.4107 | Y186: 251841.4107 | Z186: 251841.4107 | AA186: 251841.4107
G188: 2010 | H188: 2011 | I188: 2012 | J188: 2013 | K188: 2014 | L188: 2015 | M188: 2016 | N188: 2017 | O188: 2018 | P188: 2019 | Q188: 2020 | R188: 2021 | S188: 2022 | T188: 2023 | U188: 2024 | V188: 2025 | W188: 2026 | X188: 2027 | Y188: 2028 | Z188: 2029 | AA188: 2030
B189: Plant Unit | C189: Commissioning date | D189: Capacity [MW] | E189: Capacity factor | G189: Generation [MWh] | H189: Generation [MWh] | I189: Generation [MWh] | J189: Generation [MWh] | K189: Generation [MWh] | L189: Generation [MWh] | M189: Generation [MWh] | N189: Generation [MWh] | O189: Generation [MWh] | P189: Generation [MWh] | Q189: Generation [MWh] | R189: Generation [MWh] | S189: Generation [MWh] | T189: Generation [MWh] | U189: Generation [MWh] | V189: Generation [MWh] | W189: Generation [MWh] | X189: Generation [MWh] | Y189: Generation [MWh] | Z189: Generation [MWh] | AA189: Generation [MWh]
B190: Hydropower | G190: =SUM(G191:G259) -> 2151428.98 | H190: 2324105.464 | I190: 2322084.465 | J190: 2514863.619 | K190: 2232992.857 | L190: 2439591.151 | M190: 1715604.461 | N190: 2229863.901 | O190: 2651238.979 | P190: 2640951.116 | Q190: 2640951.116 | R190: 2640951.116 | S190: 2640951.116 | T190: 2640951.116 | U190: 2640951.116 | V190: 2640951.116 | W190: 2640951.116 | X190: 2640951.116 | Y190: 2640951.116 | Z190: 2640951.116 | AA190: 2640951.116
B191: Angostura
B192: ANG1 | G192: 9271.1 | H192: 8656.585 | I192: 10232.769 | J192: 8655.151 | K192: 8364.82 | L192: 8059.284 | M192: 8299.026 | N192: 7068.212 | O192: =+AVERAGE(L192:N192) -> 7808.840667 | P192: =+O192 -> 7808.840667 | Q192: =+P192 -> 7808.840667 | R192: 7808.840667 | S192: 7808.840667 | T192: 7808.840667 | U192: 7808.840667 | V192: 7808.840667 | W192: 7808.840667 | X192: 7808.840667 | Y192: 7808.840667 | Z192: 7808.840667 | AA192: 7808.840667
B193: ANG2 | G193: 4843.5 | H193: 5139.198 | I193: 4981.526 | J193: 3998.696 | K193: 4087.838 | L193: 3992.585 | M193: 2863.16 | N193: 3531.556 | O193: 3462.433667 | P193: =+O193 -> 3462.433667 | Q193: 3462.433667 | R193: 3462.433667 | S193: 3462.433667 | T193: 3462.433667 | U193: 3462.433667 | V193: 3462.433667 | W193: 3462.433667 | X193: 3462.433667 | Y193: 3462.433667 | Z193: 3462.433667 | AA193: 3462.433667
B194: ANG3 | G194: 5760.916 | H194: 6575.517 | I194: 7386.07 | J194: 6891.603 | K194: 6808.925 | L194: 6644.116 | M194: 5656.743 | N194: 6833.087 | O194: 6377.982 | P194: 6377.982 | Q194: 6377.982 | R194: 6377.982 | S194: 6377.982 | T194: 6377.982 | U194: 6377.982 | V194: 6377.982 | W194: 6377.982 | X194: 6377.982 | Y194: 6377.982 | Z194: 6377.982 | AA194: 6377.982
B195: Botijlaca
B196: BOT1 | G196: 7849.874 | H196: 8621.266 | I196: 8717.69 | J196: 8548.19 | K196: 6937.646 | L196: 8959.491 | M196: 5032.601 | N196: 8563.441 | O196: 7518.511 | P196: =+O196 -> 7518.511 | Q196: 7518.511 | R196: 7518.511 | S196: 7518.511 | T196: 7518.511 | U196: 7518.511 | V196: 7518.511 | W196: 7518.511 | X196: 7518.511 | Y196: 7518.511 | Z196: 7518.511 | AA196: 7518.511
B197: BOT2 | G197: 6640.692 | H197: 7153.313 | I197: 7359.012 | J197: 7028.019 | K197: 5548.011 | L197: 7037.519 | M197: 3451.904 | N197: 6239.618 | O197: 5576.347 | P197: 5576.347 | Q197: 5576.347 | R197: 5576.347 | S197: 5576.347 | T197: 5576.347 | U197: 5576.347 | V197: 5576.347 | W197: 5576.347 | X197: 5576.347 | Y197: 5576.347 | Z197: 5576.347 | AA197: 5576.347
B198: BOT3 | G198: 21561.253 | H198: 20814.348 | I198: 22706.516 | J198: 22174.723 | K198: 20967.523 | L198: 23605.781 | M198: 18889.346 | N198: 20402.677 | O198: 20965.93467 | P198: 20965.93467 | Q198: 20965.93467 | R198: 20965.93467 | S198: 20965.93467 | T198: 20965.93467 | U198: 20965.93467 | V198: 20965.93467 | W198: 20965.93467 | X198: 20965.93467 | Y198: 20965.93467 | Z198: 20965.93467 | AA198: 20965.93467
B199: Cahua
B200: CAH1 | G200: 79039.576 | H200: 58254.009 | I200: 51281.208 | J200: 86457.891 | K200: 85493.886 | L200: 81648.602 | M200: 62691.475 | N200: 85854.238 | O200: 76731.43833 | P200: =+O200 -> 76731.43833 | Q200: 76731.43833 | R200: 76731.43833 | S200: 76731.43833 | T200: 76731.43833 | U200: 76731.43833 | V200: 76731.43833 | W200: 76731.43833 | X200: 76731.43833 | Y200: 76731.43833 | Z200: 76731.43833 | AA200: 76731.43833
B201: CAH2 | G201: 81435.837 | H201: 91507.437 | I201: 83285.34 | J201: 84764.018 | K201: 77185.931 | L201: 81079.113 | M201: 67549.633 | N201: 83617.593 | O201: 77415.44633 | P201: 77415.44633 | Q201: 77415.44633 | R201: 77415.44633 | S201: 77415.44633 | T201: 77415.44633 | U201: 77415.44633 | V201: 77415.44633 | W201: 77415.44633 | X201: 77415.44633 | Y201: 77415.44633 | Z201: 77415.44633 | AA201: 77415.44633
B202: Carabuco
B203: CRB | G203: 43231.955 | H203: 41999.479 | I203: 43164.041 | J203: 45495.326 | K203: 43258.478 | L203: 41867.757 | M203: 36040.24 | N203: 41074.045 | O203: 39660.68067 | P203: =+O203 -> 39660.68067 | Q203: =+P203 -> 39660.68067 | R203: 39660.68067 | S203: 39660.68067 | T203: 39660.68067 | U203: 39660.68067 | V203: 39660.68067 | W203: 39660.68067 | X203: 39660.68067 | Y203: 39660.68067 | Z203: 39660.68067 | AA203: 39660.68067
B204: Chojlla
B205: CHJ1y2 | G205: 5956.35675 | H205: 3270.249673 | I205: 5549.074273 | J205: 3766.921545 | K205: 4567.332535 | L205: 1658.238035 | M205: 38.66845 | N205: 0 | O205: 565.635495 | P205: =+O205 -> 565.635495 | Q205: 565.635495 | R205: 565.635495 | S205: 565.635495 | T205: 565.635495 | U205: 565.635495 | V205: 565.635495 | W205: 565.635495 | X205: 565.635495 | Y205: 565.635495 | Z205: 565.635495 | AA205: 565.635495
B206: CHJ | G206: 106123.258 | H206: 124388.162 | I206: 135330.642 | J206: 141958.0827 | K206: 127364.103 | L206: 130614.54 | M206: 50256.09 | N206: 127227.77 | O206: 102699.4667 | P206: 102699.4667 | Q206: 102699.4667 | R206: 102699.4667 | S206: 102699.4667 | T206: 102699.4667 | U206: 102699.4667 | V206: 102699.4667 | W206: 102699.4667 | X206: 102699.4667 | Y206: 102699.4667 | Z206: 102699.4667 | AA206: 102699.4667
B207: Choquetanga
B208: CHO1 | G208: 12172.712 | H208: 11726.216 | I208: 12408.23 | J208: 12482.19 | K208: 11577.643 | L208: 11539.983 | M208: 9108.759 | N208: 10812.362 | O208: 10487.03467 | P208: =+O208 -> 10487.03467 | Q208: 10487.03467 | R208: 10487.03467 | S208: 10487.03467 | T208: 10487.03467 | U208: 10487.03467 | V208: 10487.03467 | W208: 10487.03467 | X208: 10487.03467 | Y208: 10487.03467 | Z208: 10487.03467 | AA208: 10487.03467
B209: CHO2 | G209: 14106.915 | H209: 13902.389 | I209: 15012.158 | J209: 15518.907 | K209: 14227.504 | L209: 14778.668 | M209: 11847.556 | N209: 13785.388 | O209: 13470.53733 | P209: 13470.53733 | Q209: 13470.53733 | R209: 13470.53733 | S209: 13470.53733 | T209: 13470.53733 | U209: 13470.53733 | V209: 13470.53733 | W209: 13470.53733 | X209: 13470.53733 | Y209: 13470.53733 | Z209: 13470.53733 | AA209: 13470.53733
B210: CHO3 | G210: 11843.383 | H210: 11428.677 | I210: 12088.936 | J210: 12150.215 | K210: 11142.393 | L210: 11178.842 | M210: 9006.972 | N210: 10677.777 | O210: =+AVERAGE(L210:N210) -> 10287.86367
B211: Chururaqui
B212: CHU1 | G212: 63528.492 | H212: 66072.78 | I212: 69551.443 | J212: 71908.643 | K212: 64762.602 | L212: 71255.49 | M212: 53061.766 | N212: 68171.012 | O212: =+AVERAGE(L212:N212) -> 64162.756 | P212: =+O212 -> 64162.756 | Q212: 64162.756 | R212: 64162.756 | S212: 64162.756 | T212: 64162.756 | U212: 64162.756 | V212: 64162.756 | W212: 64162.756 | X212: 64162.756 | Y212: 64162.756 | Z212: 64162.756 | AA212: 64162.756
B213: CHU2 | G213: 62589.967 | H213: 67733.378 | I213: 64736.138 | J213: 72200.595 | K213: 62725.934 | L213: 67719.197 | M213: 53897.993 | N213: 66329.928 | O213: 62649.03933 | P213: 62649.03933 | Q213: 62649.03933 | R213: 62649.03933 | S213: 62649.03933 | T213: 62649.03933 | U213: 62649.03933 | V213: 62649.03933 | W213: 62649.03933 | X213: 62649.03933 | Y213: 62649.03933 | Z213: 62649.03933 | AA213: 62649.03933
B214: Corani
B215: COR1234 | G215: 280767.663 | H215: 317689.14 | I215: 325459.12 | J215: 373791.26 | K215: 371305.78 | L215: 377176.696 | M215: 214629.939 | N215: 284284.711 | O215: =+AVERAGE(L215:N215) -> 292030.4487 | P215: =+O215 -> 292030.4487 | Q215: =+P215 -> 292030.4487 | R215: 292030.4487 | S215: 292030.4487 | T215: 292030.4487 | U215: 292030.4487 | V215: 292030.4487 | W215: 292030.4487 | X215: 292030.4487 | Y215: 292030.4487 | Z215: 292030.4487 | AA215: 292030.4487
B216: Cuticucho
B217: CUT1 | G217: 7186.324 | H217: 9743.347 | I217: 9415.135 | J217: 6458.43 | K217: 5475.314 | L217: 14181.029 | M217: 4440.681 | N217: 9498.882 | O217: =+AVERAGE(L217:N217) -> 9373.530667 | P217: =+O217 -> 9373.530667 | Q217: 9373.530667 | R217: 9373.530667 | S217: 9373.530667 | T217: 9373.530667 | U217: 9373.530667 | V217: 9373.530667 | W217: 9373.530667 | X217: 9373.530667 | Y217: 9373.530667 | Z217: 9373.530667 | AA217: 9373.530667
B218: CUT2 | G218: 6993.139 | H218: 9282.077 | I218: 8698.524 | J218: 5753.34 | K218: 4912.893 | L218: 12898.889 | M218: 5619.907 | N218: 9023.669 | O218: =+AVERAGE(L218:N218) -> 9180.821667 | P218: 9180.821667 | Q218: 9180.821667 | R218: 9180.821667 | S218: 9180.821667 | T218: 9180.821667 | U218: 9180.821667 | V218: 9180.821667 | W218: 9180.821667 | X218: 9180.821667 | Y218: 9180.821667 | Z218: 9180.821667 | AA218: 9180.821667
... 53 more rows

Sheet Proyectos Adicionales C-D
B3: Plant Unit | C3: Commissioning date | D3: Capacity [MW] | E3: Capacity factor
B4: Hydropower
B5: Hydro A
B6: Hidro A | C6: 2029 | D6: 250 | E6: 0.5
B7: Hydro B
B8: Hidro B | C8: 2030 | D8: 90 | E8: 0.5

Sheet Proyectos
C3: Adiciones de proyectos (1999 - 2021)
C4: Unidad | D4: Fecha Puesta en Marcha | E4: Capacidad (MW) | F4: Tecnologia | G4: Proyecto MDL
C5: Palillada | D5: 2021-08-01 | E5: 118.2 | F5: Hydro | G5: NO
C6: Umapalca | D6: 2021-07-01 | E6: 85.8 | F6: Hydro | G6: NO
C7: Sehuencas | D7: 2021-06-01 | E7: 198.6 | F7: Hydro | G7: NO
C8: Juntas | D8: 2021-06-01 | E8: 91.56 | F8: Hydro | G8: NO
C9: Warnes II | D9: 2021-05-01 | E9: 24 | F9: Eolico | G9: NO
C10: La Ventolera | D10: 2021-05-01 | E10: 21 | F10: Eolico | G10: NO
C11: Planta Piloto Goetermica | D11: 2020-12-01 | E11: 5 | F11: Geotermico | G11: NO
C12: CCSUR10 | D12: 2020-02-01 | E12: 36.72 | F12: Thermal | G12: NO
C13: CCWAR20 | D13: 2020-02-01 | E13: 40.34 | F13: Thermal | G13: NO
C14: CCERI50 | D14: 2019-12-01 | E14: 136.4 | F14: Thermal | G14: NO
C15: CCSUR20 | D15: 2019-12-01 | E15: 36.72 | F15: Thermal | G15: NO
C16: CCWAR10 | D16: 2019-12-01 | E16: 40.34 | F16: Thermal | G16: NO
C17: CCERI40 | D17: 2019-10-01 | E17: 136.4 | F17: Thermal | G17: NO
C18: CCERI30 | D18: 2019-08-01 | E18: 136.4 | F18: Thermal | G18: NO
C19: CCWAR40 | D19: 2019-08-01 | E19: 135.15 | F19: Thermal | G19: NO
C20: CCWAR30 | D20: 2019-07-01 | E20: 135.15 | F20: Thermal | G20: NO
C21: AGU01 | D21: 2019-05-01 | E21: 4.57 | F21: Biomass | G21: NO
C22: CCSUR40 | D22: 2019-04-01 | E22: 132.69 | F22: Thermal | G22: NO
C23: CCSUR30 | D23: 2019-02-01 | E23: 132.69 | F23: Thermal | G23: NO
C24: San José 2 | D24: 2019-02-01 | E24: 69 | F24: Hydro | G24: NO
C25: Warnes I | D25: 2020-05-01 | E25: 14.4 | F25: Eolico | G25: NO
C26: San Julian | D26: 2020-07-01 | E26: 39.6 | F26: Eolico | G26: NO
C27: El Dorado | D27: 2020-08-01 | E27: 54 | F27: Eolico | G27: NO
C28: Yunchara | D28: 2017-10-01 | E28: 5 | F28: Solar | G28: NO
C29: IAG01 | D29: 2017-07-01 | E29: 5 | F29: Biomasa | G29: NO
C30: Misicuni | D30: 2017-09-01 | E30: 120 | F30: Hidro | G30: NO
C31: SBU01 | D31: 2016-09-01 | E31: 12 | F31: Biomasa | G31: NO
C32: QOLLPANA II | D32: 2016-08-01 | E32: 24 | F32: Eolico | G32: NO
C33: WAR01 | D33: 2015-09-01 | E33: 40 | F33: Termico | G33: NO
C34: WAR02 | D34: 2015-09-01 | E34: 40 | F34: Termico | G34: NO
C35: WAR03 | D35: 2015-09-01 | E35: 40 | F35: Termico | G35: NO
C36: WAR04 | D36: 2015-09-01 | E36: 40 | F36: Termico | G36: NO
C37: WAR05 | D37: 2015-09-01 | E37: 40 | F37: Termico | G37: NO
C38: San Jacinto | D38: 2015-08-01 | E38: 7 | F38: Hidro | G38: NO
C39: UNA01 | D39: 2015-06-01 | E39: 6 | F39: Biomasa | G39: NO
C40: SUR01 | D40: 2014-09-01 | E40: 40 | F40: Termico | G40: NO
C41: SUR02 | D41: 2014-09-01 | E41: 40 | F41: Termico | G41: NO
C42: SUR03 | D42: 2014-09-01 | E42: 40 | F42: Termico | G42: NO
C43: SUR04 | D43: 2014-09-01 | E43: 40 | F43: Termico | G43: NO
C44: QOLLPANA I | D44: 2014-01-01 | E44: 3 | F44: Eolico | G44: NO
C45: BUL03 | D45: 2013-12-01 | E45: 50 | F45: Termico | G45: NO
C46: ALT2 | D46: 2013-03-01 | E46: 32.35 | F46: Termico | G46: NO
C47: ALT 1 | D47: 2012-10-01 | E47: 17.5 | F47: Termico | G47: NO
C48: Ciclo Comb. (GCH 12) | D48: 2012-08-01 | E48: 82 | F48: Termico | G48: SI
C49: VHE 5,6,7,8 | D49: 2012-08-01 | E49: 42 | F49: Termico | G49: NO
C50: Car 03 | D50: 2012-01-01 | E50: 25 | F50: Termico | G50: NO
C51: Moxos | D51: 2011-10-01 | E51: 28 | F51: Termico | G51: NO
C52: ERI01 | D52: 2010-05-01 | E52: 26.7825 | F52: Termico | G52: NO
C53: ERI02 | D53: 2010-05-01 | E53: 26.7825 | F53: Termico | G53: NO
C54: ERI03 | D54: 2010-05-01 | E54: 26.7825 | F54: Termico | G54: NO
C55: ERI04 | D55: 2010-05-01 | E55: 26.7825 | F55: Termico | G55: NO
C56: Arj 13-14-15 | D56: 2008-08-01 | E56: 4.8 | F56: Termico | G56: NO
C57: QUEHATA | D57: 2007-10-07 | E57: 1.8 | F57: Hidro | G57: NO
C58: Guabira Energia (GE) | D58: 2007-10-01 | E58: 16.6 | F58: Biomasa | G58: NO
C59: GCH 11 | D59: 2007-05-07 | E59: 60 | F59: Termico | G59: NO
C60: Arj 9-10-11-12 | D60: 2006-08-01 | E60: 6.4 | F60: Termico | G60: NO
C61: Santa Isabel SIS5 | D61: 2004-06-04 | E61: 21.3 | F61: Hidro | G61: NO
C62: Chojlla | D62: 2002-06-01 | E62: 38.4 | F62: Hidro | G62: SI
C63: Yanacachi | D63: 2002-06-01 | E63: 80 | F63: Hidro | G63: SI
C64: Landara LAN1and3 | D64: 2001-06-23 | E64: 5 | F64: Hidro | G64: NO
C65: Kilpani KIL3 | D65: 2001-05-01 | E65: 5 | F65: Hidro | G65: NO
C66: CECBB1 & 2 | D66: 2000-05-01 | E66: 85.88 | F66: Termico | G66: NO
C67: Huaji | D67: 1999-06-01 | E67: 29 | F67: Hidro | G67: NO

Sheet Eficiencia
A1: CNDC | U1: Informe de Precios de Nodo mayo - octubre 2018
A5: ANEXO 5F
A7: CARACTERISTICAS DE UNIDADES TERMICAS PARA LA TEMPERATURA MEDIA ANUAL
A8: TURBINAS A GAS
A10: Periodo mayo - octubre 2018
U11: Página 1 de 4
A12: UNIDAD | B12: FOR | C12: TEMP | D12: POTENCIA EN BORNES | E12: CP&T (1) | F12: POTENCIA INYECTADA | G12: PODER CALORIFICO | H12: COSTO DE COMBUSTIBLE | J12: RENDIMIENTO TERMICO | M12: O&M | N12: REPRESENTACION LINEAL DE COSTO | P12: COSTO (US$/MWh) | S12: RENDIMIENTO TERMICO | V12: Eje X | Y12: Eje Y | AB12: Estimacion Lineal | AD12: (MMBTU/MWh) | AE12: Eficiencia (%) | AF12: Tipo de Combustible | AG12: Factor de Emisiones | AH12: Factor de Emisiones
J13: 50% (2) | K13: 0.75 | L13: 1 | S13: (MMBTU/MWh) | V13: % carga | Y13: RENDIMIENTO TERMICO | AE13: ηm,y
B14: % | C14: °C | D14: MW | E14: % | F14: MW | G14: BTU/PC | H14: US$/MPC | I14: US$/MMBTU | J14: BTU/KWh | K14: BTU/KWh | L14: BTU/KWh | M14: US$/MWh | N14: a | O14: b | P14: Al 93% | Q14: Al 92% | R14: Al 90% | S14: Al 93% | T14: Al 92% | U14: Al 90% | Y14: =+J14 -> BTU/KWh | Z14: =+K14 -> BTU/KWh | AA14: BTU/KWh | AB14: a | AC14: b | AD14: =1-'[17]% despacho'!G9 -> 0.9142857143 | AG14: EFCO2 (tCO2/TJ) | AH14: EFEL,m,y
A16: GCH01 | B16: 11.95 | C16: 26 | D16: 18.62 | E16: 3.5 | F16: 17.97 | G16: 925.6 | H16: 1.131 | I16: 1.221910112 | J16: 16761 | K16: 14443 | L16: 12977 | M16: 3.135 | N16: 90.31159812 | O16: 14.76117535 | P16: 20.16581916 | Q16: 20.22467191 | R16: 20.3463082 | S16: 13.9378658 | T16: 13.98603034 | U16: 14.08557636 | V16: 0.5 | W16: 0.75 | X16: 1 | Y16: =+J16 -> 16761 | Z16: =+K16 -> 14443 | AA16: 12977 | AB16: =INDEX(LINEST(Y16:AA16,V16:X16),1,2) -> 20403 | AC16: =INDEX(LINEST(Y16:AA16,V16:X16),1,1) -> -7568 | AD16: =AB16+AC16*$AD$14 -> 13483.68571 | AE16: =3412/AD16 -> 0.2530465388 | AF16: Gas Natural | AG16: 54.3 | AH16: =((AG16*3.6)/1000)/AE16 -> 0.7725061206
A17: GCH02 | B17: 2.76 | C17: 26 | D17: 17.62 | E17: 3.5 | F17: 17 | G17: 925.6 | H17: 1.131 | I17: 1.221910112 | J17: 18220 | K17: 15214 | L17: 13610 | M17: 4.14 | N17: 103.102541 | O17: 15.5220927 | P17: 22.04344254 | Q17: 22.11432677 | R17: 22.26082086 | S17: 14.65201274 | T17: 14.71002375 | U17: 14.82991317 | V17: =+V16 -> 0.5 | W17: =+W16 -> 0.75 | X17: 1 | Y17: =+J17 -> 18220 | Z17: 15214 | AA17: 13610 | AB17: =INDEX(LINEST(Y17:AA17,V17:X17),1,2) -> 22596.33333 | AC17: =INDEX(LINEST(Y17:AA17,V17:X17),1,1) -> -9220 | AD17: =AB17+AC17*$AD$14 -> 14166.61905 | AE17: =3412/AD17 -> 0.2408478684 | AF17: Gas Natural | AG17: =+AG16 -> 54.3 | AH17: =((AG17*3.6)/1000)/AE17 -> 0.8116326763
A18: GCH04 | B18: 1.39 | C18: 26 | D18: 19.95 | E18: 3.5 | F18: 19.25 | G18: 925.6 | H18: 1.131 | I18: 1.221910112 | J18: 16884 | K18: 13887 | L18: 12867 | M18: 4.14 | N18: 99.33802024 | O18: 15.33239115 | P18: 20.88200122 | Q18: 20.94153967 | R18: 21.06453312 | S18: 13.70149985 | T18: 13.75022557 | U18: 13.85088227 | V18: =+V17 -> 0.5 | W18: 0.75 | X18: 1 | Y18: =+J18 -> 16884 | Z18: 13887 | AA18: 12867 | AB18: 20571.5 | AC18: -8034 | AD18: 13226.12857 | AE18: 0.2579742047 | AF18: Gas Natural | AG18: =+AG17 -> 54.3 | AH18: 0.7577501797
A19: GCH06 | B19: 3.42 | C19: 26 | D19: 20.71 | E19: 3.5 | F19: 19.99 | G19: 925.6 | H19: 1.131 | I19: 1.221910112 | J19: 16387 | K19: 13684 | L19: 12598 | M19: 4.065 | N19: 98.08046973 | O19: 15.2055394 | P19: 20.48151948 | Q19: 20.53889827 | R19: 20.65748324 | S19: 13.43512858 | T19: 13.48208686 | U19: 13.57913571 | V19: 0.5 | W19: 0.75 | X19: 1 | Y19: 16387 | Z19: 13684 | AA19: 12598 | AB19: 19906.5 | AC19: -7578 | AD19: 12978.04286 | AE19: 0.2629055889 | AF19: Gas Natural | AG19: 54.3 | AH19: 0.7435368751
A20: GCH09 | B20: 3.06 | C20: 26 | D20: 50.84 | E20: 3.5 | F20: 49.06 | G20: 925.6 | H20: 1.131 | I20: 1.221910112 | J20: 16181 | K20: 13345 | L20: 11934 | M20: 10.624 | N20: 272.9908514 | O20: 20.34557184 | P20: 26.32827733 | Q20: 26.3932203 | R20: 26.52883008 | S20: 12.85223616 | T20: 12.90538489 | U20: 13.01636669 | V20: 0.5 | W20: 0.75 | X20: 1 | Y20: 16181 | Z20: 13345 | AA20: 11934 | AB20: 20190.5 | AC20: -8494 | AD20: 12424.55714 | AE20: 0.2746174339 | AF20: Gas Natural | AG20: 54.3 | AH20: 0.7118266208
A21: GCH10 | B21: 3.27 | C21: 26 | D21: 51.85 | E21: 3.5 | F21: 50.04 | G21: 925.6 | H21: 1.131 | I21: 1.221910112 | J21: 16181 | K21: 13345 | L21: 11934 | M21: 10.624 | N21: 278.4141551 | O21: 20.34557184 | P21: 26.327827 | Q21: 26.39279502 | R21: 26.52705841 | S21: 12.85186761 | T21: 12.90503684 | U21: 13.01491677 | V21: 0.5 | W21: 0.75 | X21: 1 | Y21: 16181 | Z21: 13345 | AA21: 11934 | AB21: 20190.5 | AC21: -8494 | AD21: 12424.55714 | AE21: 0.2746174339 | AF21: Gas Natural | AG21: 54.3 | AH21: 0.7118266208
A22: GCH11 | B22: 2.54 | C22: 26 | D22: 62.22 | E22: 3.5 | F22: 60.04 | G22: 925.6 | H22: 1.131 | I22: 1.221910112 | J22: 13827 | K22: 11267 | L22: 10242 | M22: 10.624 | N22: 278.7529515 | O22: 19.04295456 | P22: 24.03494868 | Q22: 24.0891702 | R22: 24.20122532 | S22: 10.97539708 | T22: 11.01977147 | U22: 11.11147635 | V22: 0.5 | W22: 0.75 | X22: 1 | Y22: 13827 | Z22: 11267 | AA22: 10242 | AB22: 17156.16667 | AC22: -7170 | AD22: 10600.7381 | AE22: 0.3218643805 | AF22: Gas Natural | AG22: 54.3 | AH22: 0.6073365425
A23: GCH09COM | B23: 5.79 | C23: 26 | D23: 103.96 | E23: 3.5 | F23: 100.32 | G23: 925.6 | H23: 1.131 | I23: 1.221910112 | J23: 7636 | K23: 7378 | L23: 7218 | M23: 3.008 | N23: 55.6361834 | O23: 11.60780337 | P23: 12.20411831 | Q23: 12.21064424 | R23: 12.22399767 | S23: 7.526018659 | T23: 7.53135942 | U23: 7.542287749 | V23: 0.5 | W23: 0.75 | X23: 1 | Y23: 7636 | Z23: 7378 | AA23: 7218 | AB23: 8037.666667 | AC23: -836 | AD23: 7273.32381 | AE23: 0.4691115217 | AF23: Gas Natural | AG23: 54.3 | AH23: 0.4167026197
A24: GCH10COM | B24: 5.92 | C24: 26 | D24: 102.87 | E24: 3.5 | F24: 99.27 | G24: 925.6 | H24: 1.131 | I24: 1.221910112 | J24: 7636 | K24: 7378 | L24: 7218 | M24: 3.008 | N24: 55.05284904 | O24: 11.60780337 | P24: 12.20412973 | Q24: 12.21059379 | R24: 12.22402062 | S24: 7.526028005 | T24: 7.531318137 | U24: 7.54230653 | V24: 0.5 | W24: 0.75 | X24: 1 | Y24: 7636 | Z24: 7378 | AA24: 7218 | AB24: 8037.666667 | AC24: -836 | AD24: 7273.32381 | AE24: 0.4691115217 | AF24: Gas Natural | AG24: 54.3 | AH24: 0.4167026197
A25: SCZ01 | B25: 0.6 | C25: 26 | D25: 20.76 | E25: 2.3 | F25: 20.28 | G25: 925.6 | H25: 1.131 | I25: 1.221910112 | J25: 16152 | K25: 13915 | L25: 12683 | M25: 3.135 | N25: 90.51245448 | O25: 14.65262941 | P25: 19.45180515 | Q25: 19.50324326 | R25: 19.61221596 | S25: 13.3535233 | T25: 13.39561977 | U25: 13.48480202 | V25: 0.5 | W25: 0.75 | X25: 1 | Y25: 16152 | Z25: 13915 | AA25: 12683 | AB25: 19453.5 | AC25: -6938 | AD25: 13110.18571 | AE25: 0.2602556573 | AF25: Gas Natural | AG25: 54.3 | AH25: 0.7511075919
A26: SCZ02 | B26: 2.24 | C26: 26 | D26: 21.19 | E26: 2.3 | F26: 20.7 | G26: 925.6 | H26: 1.131 | I26: 1.221910112 | J26: 16523 | K26: 14234 | L26: 12816 | M26: 3.135 | N26: 99.39766786 | O26: 14.52137794 | P26: 19.68489315 | Q26: 19.74184368 | R26: 19.85673316 | S26: 13.54428037 | T26: 13.59088816 | U26: 13.68491266 | V26: 0.5 | W26: 0.75 | X26: 1 | Y26: 16523 | Z26: 14234 | AA26: 12816 | AB26: 20084.83333 | AC26: -7414 | AD26: 13306.31905 | AE26: 0.2564195243 | AF26: Gas Natural | AG26: 54.3 | AH26: 0.7623444453
A27: GBE01 | B27: 12.65 | C27: 26 | D27: 21 | E27: 1.7 | F27: 20.64 | M27: 2.083 | N27: 0 | O27: 2.083 | P27: 2.083 | Q27: 2.083 | R27: 2.083 | S27: 0 | T27: 0 | U27: 0 | AF27: Biomasa
A28: IAG01 | B28: 3 | C28: 26 | D28: 5 | E28: 0 | F28: 5 | M28: 3.5 | N28: 0 | O28: 3.5 | P28: 3.5 | Q28: 3.5 | R28: 3.5 | S28: 0 | T28: 0 | U28: 0 | AF28: Biomasa
A29: UNA01 | B29: 5 | C29: 26 | D29: 14.57 | E29: 0 | F29: 14.57 | M29: 3.5 | N29: -9.139865171e-14 | O29: 3.5 | P29: 3.5 | Q29: 3.5 | R29: 3.5 | S29: 0 | T29: 0 | U29: 0 | AF29: Biomasa
A30: SBU01 | B30: 5.25 | C30: 26 | D30: 6 | E30: 0 | F30: 6 | M30: 3.5 | N30: 0 | O30: 3.5 | P30: 3.5 | Q30: 3.5 | R30: 3.5 | S30: 0 | T30: 0 | U30: 0 | AF30: Biomasa
A31: BUL01 | B31: 11.34 | C31: 26 | D31: 44.82 | E31: 2.6 | F31: 43.65 | G31: 925.4 | H31: 1.131 | I31: 1.222174195 | J31: 10516 | K31: 9420 | L31: 8715 | M31: 4.127 | N31: 102.6905516 | O31: 12.79681531 | P31: 15.32676238 | Q31: 15.35385095 | R31: 15.41047149 | S31: 9.163802035 | T31: 9.185966287 | U31: 9.232294004 | V31: =+V26 -> 0.5 | W31: =+W26 -> 0.75 | X31: 1 | Y31: 10516 | Z31: 9420 | AA31: 8715 | AB31: 12251.83333 | AC31: -3602 | AD31: 8958.57619 | AE31: =3412/AD31 -> 0.3808640935 | AF31: =+AF26 -> Gas Natural | AG31: =+AG26 -> 54.3 | AH31: =((AG31*3.6)/1000)/AE31 -> 0.5132539489
A32: BUL02 | B32: 13.35 | C32: 26 | D32: 44.82 | E32: 2.6 | F32: 43.65 | G32: 925.4 | H32: 1.131 | I32: 1.222174195 | J32: 10516 | K32: 9420 | L32: 8715 | M32: 4.127 | N32: 102.6905516 | O32: 12.79681531 | P32: 15.32676238 | Q32: 15.35385095 | R32: 15.41047149 | S32: 9.163802035 | T32: 9.185966287 | U32: 9.232294004 | V32: 0.5 | W32: 0.75 | X32: 1 | Y32: 10516 | Z32: 9420 | AA32: 8715 | AB32: 12251.83333 | AC32: -3602 | AD32: 8958.57619 | AE32: 0.3808640935 | AF32: =+AF31 -> Gas Natural | AG32: =+AG31 -> 54.3 | AH32: 0.5132539489
A33: BUL03 | B33: 4.74 | C33: 26 | D33: 49.02 | E33: 2.6 | F33: 47.75 | G33: 925.4 | H33: 1.131 | I33: 1.222174195 | J33: 10179 | K33: 9015 | L33: 8535 | M33: 4.127 | N33: 100.0095171 | O33: 12.76797444 | P33: 15.01993384 | Q33: 15.04453982 | R33: 15.09485944 | S33: 8.912750644 | T33: 8.932883597 | U33: 8.97405581 | V33: 0.5 | W33: 0.75 | X33: 1 | Y33: 10179 | Z33: 9015 | AA33: 8535 | AB33: 11709 | AC33: -3288 | AD33: 8702.828571 | AE33: 0.3920564414 | AF33: =+AF32 -> Gas Natural | AG33: 54.3 | AH33: 0.4986016791
A34: CAR01 | B34: 1.38 | C34: 26 | D34: 53.65 | E34: 2.5 | F34: 52.31 | G34: 929.5 | H34: 1.131 | I34: 1.216783217 | J34: 11489 | K34: 10175 | L34: 9745 | M34: 3.015 | N34: 114.1637578 | O34: 12.99386958 | P34: 15.34050386 | Q34: 15.36585707 | R34: 15.41875823 | S34: 10.12958076 | T34: 10.15041702 | U34: 10.19389326 | V34: =+V33 -> 0.5 | W34: 0.75 | X34: 1 | Y34: 11489 | Z34: 10175 | AA34: 9745 | AB34: 13085.66667 | AC34: -3488 | AD34: 9896.638095 | AE34: 0.3447635416 | AF34: Gas Natural | AG34: 54.3 | AH34: 0.566997308
A35: CAR02 | B35: 2.85 | C35: 26 | D35: 55.39 | E35: 2.5 | F35: 54.01 | G35: 929.5 | H35: 1.131 | I35: 1.216783217 | J35: 11482 | K35: 10271 | L35: 9933 | M35: 3.015 | N35: 103.9289591 | O35: 13.47154825 | P35: 15.54060975 | Q35: 15.56309502 | R35: 15.60956428 | S35: 10.2940356 | T35: 10.31251488 | U35: 10.35070513 | V35: 0.5 | W35: 0.75 | X35: 1 | Y35: 11482 | Z35: 10271 | AA35: 9933 | AB35: 12885.5 | AC35: -3098 | AD35: 10053.04286 | AE35: 0.3393997269 | AF35: Gas Natural | AG35: 54.3 | AH35: 0.5759580357
A36: CAR03 | B36: 5.07 | C36: 26 | D36: 24.32 | E36: 2.5 | F36: 23.71 | G36: 929.5 | H36: 1.131 | I36: 1.216783217 | J36: 11619 | K36: 10356 | L36: 9749 | M36: 5.25 | N36: 56.59693214 | O36: 15.07671084 | P36: 17.64346513 | Q36: 17.67171002 | R36: 17.72886324 | S36: 10.18543399 | T36: 10.20864674 | U36: 10.25561749 | V36: 0.5 | W36: 0.75 | X36: 1 | Y36: 11619 | Z36: 10356 | AA36: 9749 | AB36: 13379.66667 | AC36: -3740 | AD36: 9960.238095 | AE36: =3412/AD36 -> 0.3425620921 | AF36: Gas Natural | AG36: 54.3 | AH36: 0.5706410735
A37: VHE01 | B37: 8.97 | C37: 18 | D37: 18.52 | E37: 0.7 | F37: 18.39 | G37: 929.9 | H37: 1.131 | I37: 1.216259813 | J37: 14467 | K37: 12428 | L37: 11519 | M37: 2.168 | N37: 66.45117526 | O37: 12.6655348 | P37: 16.55156844 | Q37: 16.59290922 | R37: 16.68071155 | S37: 11.82606569 | T37: 11.86005578 | U37: 11.93224622 | V37: 0.5 | W37: 0.75 | X37: 1 | Y37: 14467 | Z37: 12428 | AA37: 11519 | AB37: 17226.66667 | AC37: -5896 | AD37: 11836.0381 | AE37: 0.2882721374 | AF37: Gas Natural | AG37: 54.3 | AH37: 0.67810924
A38: VHE02 | B38: 0.52 | C38: 18 | D38: 18.81 | E38: 0.7 | F38: 18.68 | G38: 929.9 | H38: 1.131 | I38: 1.216259813 | J38: 14152 | K38: 12315 | L38: 11560 | M38: 1.267 | N38: 59.08669001 | O38: 12.25076993 | P38: 15.65242163 | Q38: 15.68804102 | R38: 15.76574256 | S38: 11.82758936 | T38: 11.85687537 | U38: 11.92076102 | V38: 0.5 | W38: 0.75 | X38: 1 | Y38: 14152 | Z38: 12315 | AA38: 11560 | AB38: 16563.66667 | AC38: -5184 | AD38: 11824.00952 | AE38: 0.2885653968 | AF38: Gas Natural | AG38: 54.3 | AH38: 0.6774201002
A39: VHE03 | B39: 10.65 | C39: 18 | D39: 18.32 | E39: 0.7 | F39: 18.19 | G39: 929.9 | H39: 1.131 | I39: 1.216259813 | J39: 14815 | K39: 12533 | L39: 11435 | M39: 1.267 | N39: 75.67913829 | O39: 11.1325516 | P39: 15.60531391 | Q39: 15.65611038 | R39: 15.75558998 | S39: 11.78885774 | T39: 11.83062223 | U39: 11.91241364 | V39: 0.5 | W39: 0.75 | X39: 1 | Y39: 14815 | Z39: 12533 | AA39: 11435 | AB39: 17997.66667 | AC39: -6760 | AD39: 11817.09524 | AE39: 0.2887342389 | AF39: Gas Natural | AG39: 54.3 | AH39: 0.6770239675
A40: VHE04 | B40: 2.01 | C40: 18 | D40: 18.63 | E40: 0.7 | F40: 18.5 | G40: 929.9 | H40: 1.131 | I40: 1.216259813 | J40: 14044 | K40: 12173 | L40: 11383 | M40: 1.267 | N40: 60.16412949 | O40: 11.94947561 | P40: 15.44535763 | Q40: 15.48438334 | R40: 15.56293685 | S40: 11.65734285 | T40: 11.6894295 | U40: 11.75401563 | V40: 0.5 | W40: 0.75 | X40: 1 | Y40: 14044 | Z40: 12173 | AA40: 11383 | AB40: 16524.83333 | AC40: -5322 | AD40: 11659.00476 | AE40: 0.2926493358 | AF40: Gas Natural | AG40: 54.3 | AH40: 0.667966662
A41: VHE05 | B41: 2.66 | C41: 18 | D41: 10.58 | E41: 0.7 | F41: 10.51 | G41: 929.9 | H41: 1.131 | I41: 1.216259813 | J41: 12381 | K41: 10642 | L41: 9861 | M41: 8.129 | N41: 32.46329261 | O41: 17.12006323 | P41: 20.4428158 | Q41: 20.47717725 | R41: 20.55170093 | S41: 10.12433007 | T41: 10.15258181 | U41: 10.21385463 | V41: 0.5 | W41: 0.75 | X41: 1 | Y41: 12381 | Z41: 10642 | AA41: 9861 | AB41: 14741.33333 | AC41: -5040 | AD41: 10133.33333 | AE41: 0.3367105263 | AF41: Gas Natural | AG41: 54.3 | AH41: 0.5805580305
A42: VHE06 | B42: 3.27 | C42: 18 | D42: 10.58 | E42: 0.7 | F42: 10.51 | G42: 929.9 | H42: 1.131 | I42: 1.216259813 | J42: 12381 | K42: 10642 | L42: 9861 | M42: 8.129 | N42: 32.46329261 | O42: 17.12006323 | P42: 20.4428158 | Q42: 20.47717725 | R42: 20.55170093 | S42: 10.12433007 | T42: 10.15258181 | U42: 10.21385463 | V42: 0.5 | W42: 0.75 | X42: 1 | Y42: 12381 | Z42: 10642 | AA42: 9861 | AB42: 14741.33333 | AC42: -5040 | AD42: 10133.33333 | AE42: 0.3367105263 | AF42: Gas Natural | AG42: 54.3 | AH42: 0.5805580305
A43: VHE07 | B43: 2.59 | C43: 18 | D43: 10.58 | E43: 0.7 | F43: 10.51 | G43: 929.9 | H43: 1.131 | I43: 1.216259813 | J43: 12381 | K43: 10642 | L43: 9861 | M43: 8.129 | N43: 32.46329261 | O43: 17.12006323 | P43: 20.4428158 | Q43: 20.47717725 | R43: 20.55170093 | S43: 10.12433007 | T43: 10.15258181 | U43: 10.21385463 | V43: 0.5 | W43: 0.75 | X43: 1 | Y43: 12381 | Z43: 10642 | AA43: 9861 | AB43: 14741.33333 | AC43: -5040 | AD43: 10133.33333 | AE43: 0.3367105263 | AF43: Gas Natural | AG43: 54.3 | AH43: 0.5805580305
A44: VHE08 | B44: 2.89 | C44: 18 | D44: 10.58 | E44: 0.7 | F44: 10.51 | G44: 929.9 | H44: 1.131 | I44: 1.216259813 | J44: 12381 | K44: 10642 | L44: 9861 | M44: 8.129 | N44: 32.46329261 | O44: 17.12006323 | P44: 20.4428158 | Q44: 20.47717725 | R44: 20.55170093 | S44: 10.12433007 | T44: 10.15258181 | U44: 10.21385463 | V44: 0.5 | W44: 0.75 | X44: 1 | Y44: 12381 | Z44: 10642 | AA44: 9861 | AB44: 14741.33333 | AC44: -5040 | AD44: 10133.33333 | AE44: 0.3367105263 | AF44: Gas Natural | AG44: 54.3 | AH44: 0.5805580305
A45: ARJ08 | B45: 0.29 | C45: 15 | D45: 18.39 | E45: 2.9 | F45: 17.86 | G45: 965.4 | H45: 1.131 | I45: 1.171535115 | J45: 14347 | K45: 12590 | L45: 11586 | M45: 1.389 | N45: 61.6732068 | O45: 12.02762251 | P45: 15.74063918 | Q45: 15.78131739 | R45: 15.86540763 | S45: 12.25028511 | T45: 12.28500726 | U45: 12.35678508 | V45: 0.5 | W45: 0.75 | X45: 1 | Y45: 14347 | Z45: 12590 | AA45: 11586 | AB45: 16982.5 | AC45: -5522 | AD45: 11933.81429 | AE45: 0.2859102646 | AF45: Gas Natural | AG45: 54.3 | AH45: 0.6837110248
A46: ARJ09 | B46: 17.66 | C46: 15 | D46: 1.49 | E46: 2.9 | F46: 1.45 | G46: 965.4 | H46: 1.131 | I46: 1.171535115 | J46: 10136 | K46: 9773 | L46: 9360 | M46: 15.453 | N46: 2.112782088 | O46: 25.32413112 | P46: 26.88915488 | Q46: 26.91268908 | R46: 26.93694187 | S46: 9.7616834 | T46: 9.781771737 | U46: 9.802473458 | V46: 0.6 | W46: 0.75 | X46: 1 | Y46: 10136 | Z46: 9773 | AA46: 9360 | AB46: 11252.97959 | AC46: -1910.612245 | AD46: 9506.134111 | AE46: 0.3589261376 | AF46: Gas Natural | AG46: 54.3 | AH46: 0.5446245885
A47: ARJ11 | B47: 17.33 | C47: 15 | D47: 1.49 | E47: 2.9 | F47: 1.45 | G47: 965.4 | H47: 1.131 | I47: 1.171535115 | J47: 10318 | K47: 9920 | L47: 9476 | M47: 15.453 | N47: 2.288847262 | O47: 25.34536285 | P47: 27.04080526 | Q47: 27.06630064 | R47: 27.0925745 | S47: 9.891129267 | T47: 9.912891632 | U47: 9.935318496 | V47: 0.6 | W47: 0.75 | X47: 1 | Y47: 10318 | Z47: 9920 | AA47: 9476 | AB47: 11527.28571 | AC47: -2071.428571 | AD47: 9633.408163 | AE47: 0.3541841 | AF47: Gas Natural | AG47: 54.3 | AH47: 0.5519163622
A48: ARJ12 | B48: 21.3 | C48: 15 | D48: 1.6 | E48: 2.9 | F48: 1.55 | G48: 965.4 | H48: 1.131 | I48: 1.171535115 | J48: 10004 | K48: 9154 | L48: 9050 | M48: 15.453 | N48: 1.73689828 | O48: 25.21280599 | P48: 26.41898535 | Q48: 26.42742017 | R48: 26.45344762 | S48: 9.360355667 | T48: 9.367555469 | U48: 9.389772 | V48: =+V45 -> 0.5 | W48: 0.75 | X48: 1 | Y48: 10004 | Z48: 9154 | AA48: 9050 | AB48: 10833.66667 | AC48: -1908 | AD48: 9089.209524 | AE48: 0.3753901801 | AF48: Gas Natural | AG48: 54.3 | AH48: 0.5207381822
A49: ARJ13 | B49: 22.37 | C49: 15 | D49: 1.55 | E49: 2.9 | F49: 1.51 | G49: 965.4 | H49: 1.131 | I49: 1.171535115 | J49: 9587 | K49: 9284 | L49: 8846 | M49: 15.453 | N49: 2.138658352 | O49: 24.75210449 | P49: 26.2797176 | Q49: 26.29070762 | R49: 26.3246474 | S49: 9.241479375 | T49: 9.250860248 | U49: 9.279830592 | V49: =+V47 -> 0.6 | W49: 0.75 | X49: 1 | Y49: 9587 | Z49: 9284 | AA49: 8846 | AB49: 10682.09184 | AC49: -1842.244898 | AD49: 8997.753644 | AE49: 0.379205759 | AF49: Gas Natural | AG49: 54.3 | AH49: 0.5154985001
A50: ARJ14 | B50: 23.51 | C50: 15 | D50: 1.51 | E50: 2.9 | F50: 1.47 | G50: 965.4 | H50: 1.131 | I50: 1.171535115 | J50: 9792 | K50: 9358 | L50: 9037 | M50: 15.453 | N50: 2.011137329 | O50: 25.00280129 | P50: 26.47078474 | Q50: 26.49253265 | R50: 26.52639018 | S50: 9.404570639 | T50: 9.423134233 | U50: 9.452034375 | V50: =+V49 -> 0.6 | W50: 0.75 | X50: 1 | Y50: 9792 | Z50: 9358 | AA50: 9037 | AB50: 10825.96939 | AC50: -1825.918367 | AD50: 9156.558309 | AE50: 0.3726290911 | AF50: Gas Natural | AG50: 54.3 | AH50: 0.5245967228
A51: ARJ15 | B51: 23.67 | C51: 15 | D51: 1.6 | E51: 2.9 | F51: 1.55 | G51: 965.4 | H51: 1.131 | I51: 1.171535115 | J51: 10004 | K51: 9154 | L51: 9050 | M51: 15.453 | N51: 1.73689828 | O51: 25.21280599 | P51: 26.41898535 | Q51: 26.42742017 | R51: 26.45344762 | S51: 9.360355667 | T51: 9.367555469 | U51: 9.389772 | V51: =+V48 -> 0.5 | W51: 0.75 | X51: 1 | Y51: 10004 | Z51: 9154 | AA51: 9050 | AB51: 10833.66667 | AC51: -1908 | AD51: 9089.209524 | AE51: 0.3753901801 | AF51: Gas Natural | AG51: 54.3 | AH51: 0.5207381822
A52: KEN01 | B52: 16 | C52: 10 | D52: 9.35 | E52: 5 | F52: 8.88 | G52: 944 | H52: 1.131 | I52: 1.19809322 | J52: 15355 | K52: 12990 | L52: 12074 | M52: 5.63 | N52: 38.06960003 | O52: 16.69157537 | P52: 21.30048579 | Q52: 21.35125714 | R52: 21.45623119 | S52: 13.07952129 | T52: 13.12189809 | U52: 13.20951569 | V52: 0.5 | W52: 0.75 | X52: 1 | Y52: 15355 | Z52: 12990 | AA52: 12074 | AB52: 18394.5 | AC52: -6562 | AD52: 12394.95714 | AE52: 0.275273239 | AF52: Gas Natural | AG52: 54.3 | AH52: 0.7101307803
A53: KEN02 | B53: 5.18 | C53: 10 | D53: 9.35 | E53: 5 | F53: 8.88 | G53: 944 | H53: 1.131 | I53: 1.19809322 | J53: 15259 | K53: 12731 | L53: 11982 | M53: 5.63 | N53: 37.53539647 | O53: 16.58087156 | P53: 21.12510842 | Q53: 21.17516733 | R53: 21.27866836 | S53: 12.93314089 | T53: 12.97492304 | U53: 13.06131117 | V53: 0.5 | W53: 0.75 | X53: 1 | Y53: 15259 | Z53: 12731 | AA53: 11982 | AB53: 18239.5 | AC53: -6554 | AD53: 12247.27143 | AE53: 0.2785926661 | AF53: Gas Natural | AG53: 54.3 | AH53: 0.7016695835
A54: ALT01 | B54: 4.67 | C54: 10 | D54: 17.5 | E54: 1.3 | F54: 17.27 | G54: 944 | H54: 1.131 | I54: 1.19809322 | J54: 11396 | K54: 10222 | L54: 9682 | M54: 7.335 | N54: 36.23761091 | O54: 17.00551007 | P54: 19.26189929 | Q54: 19.28603939 | R54: 19.33740266 | S54: 9.954900911 | T54: 9.975049675 | U54: 10.01792052 | V54: 0.5 | W54: 0.75 | X54: 1 | Y54: 11396 | Z54: 10222 | AA54: 9682 | AB54: 13004.33333 | AC54: -3428 | AD54: 9870.161905 | AE54: 0.3456883517 | AF54: Gas Natural | AG54: 54.3 | AH54: 0.5654804364
A55: ALT02 | B55: 7.51 | C55: 10 | D55: 32.35 | E55: 1.3 | F55: 31.93 | G55: 944 | H55: 1.131 | I55: 1.19809322 | J55: 9522 | K55: 8531 | L55: 8140 | M55: 6.082 | N55: 53.57650797 | O55: 14.28397126 | P55: 16.08850168 | Q55: 16.10754199 | R55: 16.14815039 | S55: 8.352022621 | T55: 8.367914802 | U55: 8.401808988 | V55: 0.5 | W55: 0.75 | X55: 1 | Y55: 9522 | Z55: 8531 | AA55: 8140 | AB55: 10804 | AC55: -2764 | AD55: 8276.914286 | AE55: 0.4122309211 | AF55: Gas Natural | AG55: 54.3 | AH55: 0.4742002358
A56: ERI01 | B56: 0.93 | C56: 26 | D56: 28.72 | E56: 2.6 | F56: 27.97 | G56: 930.7 | H56: 1.131 | I56: 1.215214355 | J56: 11812 | K56: 10653 | L56: 9767 | M56: 7.154 | N56: 75.05735089 | O56: 16.78186626 | P56: 19.66757756 | Q56: 19.69898056 | R56: 19.76388259 | S56: 10.29742408 | T56: 10.32326561 | U56: 10.3766735 | V56: 0.5 | W56: 0.75 | X56: 1 | Y56: 11812 | Z56: 10653 | AA56: 9767 | AB56: 13811.5 | AC56: -4090 | AD56: 10072.07143 | AE56: 0.338758519 | AF56: Gas Natural | AG56: 54.3 | AH56: 0.5770482189
A57: ERI02 | B57: 0.77 | C57: 26 | D57: 28.04 | E57: 2.6 | F57: 27.31 | G57: 930.7 | H57: 1.131 | I57: 1.215214355 | J57: 12203 | K57: 10504 | L57: 9728 | M57: 7.154 | N57: 86.09909545 | O57: 16.19711241 | P57: 19.58684058 | Q57: 19.62326026 | R57: 19.69992345 | S57: 10.23098561 | T57: 10.26095537 | U57: 10.32404152 | V57: 0.5 | W57: 0.75 | X57: 1 | Y57: 12203 | Z57: 10504 | AA57: 9728 | AB57: 14524.16667 | AC57: -4950 | AD57: 9998.452381 | AE57: 0.3412528129 | AF57: Gas Natural | AG57: 54.3 | AH57: 0.572830443
A58: ERI03 | B58: 1.41 | C58: 26 | D58: 29.13 | E58: 2.6 | F58: 28.37 | G58: 930.7 | H58: 1.131 | I58: 1.215214355 | J58: 11869 | K58: 10149 | L58: 9786 | M58: 7.154 | N58: 72.64519967 | O58: 16.75817688 | P58: 19.51197519 | Q58: 19.54151786 | R58: 19.60366061 | S58: 10.16937888 | T58: 10.19368954 | U58: 10.24482681 | V58: 0.5 | W58: 0.75 | X58: 1 | Y58: 11869 | Z58: 10149 | AA58: 9786 | AB58: 13725.83333 | AC58: -4166 | AD58: 9916.919048 | AE58: 0.3440584705 | AF58: Gas Natural | AG58: 54.3 | AH58: 0.5681592425
A59: ERI04 | B59: 1.54 | C59: 26 | D59: 28.44 | E59: 2.6 | F59: 27.7 | G59: 930.7 | H59: 1.131 | I59: 1.215214355 | J59: 11974 | K59: 10360 | L59: 9872 | M59: 7.154 | N59: 72.65014327 | O59: 16.84171314 | P59: 19.66198268 | Q59: 19.69297465 | R59: 19.75587853 | S59: 10.29282005 | T59: 10.31832335 | U59: 10.37008696 | V59: 0.5 | W59: 0.75 | X59: 1 | Y59: 11974 | Z59: 10360 | AA59: 9872 | AB59: 13888.33333 | AC59: -4204 | AD59: 10044.67619 | AE59: 0.3396824283 | AF59: Gas Natural | AG59: 54.3 | AH59: 0.5754786934
A60: KAR01 | B60: 12.8 | C60: 9 | D60: 11.31 | E60: 1.4 | F60: 11.15 | G60: 965.4 | H60: 1.131 | I60: 1.171535115 | J60: 15514 | K60: 14023 | L60: 13034 | M60: 5.63 | N60: 33.86545622 | O60: 18.16748295 | P60: 21.43319714 | Q60: 21.46820967 | R60: 21.54053635 | S60: 13.48930727 | T60: 13.5191933 | U60: 13.58092997 | V60: 0.5 | W60: 0.75 | X60: 1 | Y60: 15514 | Z60: 14023 | AA60: 13034 | AB60: 17910.33333 | AC60: -4960 | AD60: 13375.47619 | AE60: 0.2550937216 | AF60: Gas Natural | AG60: 54.3 | AH60: 0.7663065902
A61: SUR01 | B61: 1.5 | C61: 22 | D61: 43.83 | E61: 1.3 | F61: 43.26 | G61: 979.8 | H61: 1.131 | I61: 1.154317208 | J61: 11508 | K61: 9681 | L61: 8957 | M61: 3.398 | N61: 129.1237362 | O61: 10.88868526 | P61: 14.09832325 | Q61: 14.13300024 | R61: 14.20550355 | S61: 9.269829104 | T61: 9.299870234 | U61: 9.362680798 | V61: 0.5 | W61: 0.75 | X61: 1 | Y61: 11508 | Z61: 9681 | AA61: 8957 | AB61: 13875.16667 | AC61: -5102 | AD61: 9210.480952 | AE61: 0.3704475388 | AF61: Gas Natural | AG61: 54.3 | AH61: 0.5276860541
A62: SUR02 | B62: 0.66 | C62: 22 | D62: 43.31 | E62: 1.3 | F62: 42.75 | G62: 979.8 | H62: 1.131 | I62: 1.154317208 | J62: 11126 | K62: 9741 | L62: 9003 | M62: 3.398 | N62: 107.8999701 | O62: 11.44294452 | P62: 14.15672646 | Q62: 14.18639659 | R62: 14.2469978 | S62: 9.32042457 | T62: 9.34612819 | U62: 9.398627799 | V62: 0.5 | W62: 0.75 | X62: 1 | Y62: 11126 | Z62: 9741 | AA62: 9003 | AB62: 13141.16667 | AC62: -4246 | AD62: 9259.109524 | AE62: 0.3685019592 | AF62: Gas Natural | AG62: 54.3 | AH62: 0.5304720779
A63: SUR03 | B63: 0.6 | C63: 22 | D63: 44.16 | E63: 1.3 | F63: 43.59 | G63: 979.8 | H63: 1.131 | I63: 1.154317208 | J63: 11572 | K63: 9718 | L63: 8917 | M63: 3.398 | N63: 136.0126964 | O63: 10.7203027 | P63: 14.07532728 | Q63: 14.11214052 | R63: 14.18736098 | S63: 9.249907399 | T63: 9.281799185 | U63: 9.346963653 | V63: 0.5 | W63: 0.75 | X63: 1 | Y63: 11572 | Z63: 9718 | AA63: 8917 | AB63: 14051.5 | AC63: -5310 | AD63: 9196.642857 | AE63: 0.3710049475 | AF63: Gas Natural | AG63: 54.3 | AH63: 0.5268932432
A64: SUR04 | B64: 0.71 | C64: 22 | D64: 44.06 | E64: 1.3 | F64: 43.49 | G64: 979.8 | H64: 1.131 | I64: 1.154317208 | J64: 11478 | K64: 9743 | L64: 8934 | M64: 3.398 | N64: 130.5655382 | O64: 10.86997609 | P64: 14.09780151 | Q64: 14.13329871 | R64: 14.20583552 | S64: 9.269377113 | T64: 9.300128803 | U64: 9.362968383 | V64: 0.5 | W64: 0.75 | X64: 1 | Y64: 11478 | Z64: 9743 | AA64: 8934 | AB64: 13867.66667 | AC64: -5088 | AD64: 9215.780952 | AE64: 0.3702344942 | AF64: Gas Natural | AG64: 54.3 | AH64: 0.5279897012
A65: WAR01 | B65: 0.64 | C65: 26 | D65: 44.58 | E65: 1.3 | F65: 44 | G65: 911.2 | H65: 1.131 | I65: 1.241220369 | J65: 11555 | K65: 9691 | L65: 8883 | M65: 3.306 | N65: 148.6150306 | O65: 11.11543957 | P65: 14.74728293 | Q65: 14.78675949 | R65: 14.86834438 | S65: 9.217769239 | T65: 9.249573873 | U65: 9.315303447 | V65: 0.5 | W65: 0.75 | X65: 1 | Y65: 11555 | Z65: 9691 | AA65: 8883 | AB65: 14051 | AC65: -5344 | AD65: 9165.057143 | AE65: 0.372283549 | AF65: Gas Natural | AG65: 54.3 | AH65: 0.5250836372
A66: WAR02 | B66: 0.93 | C66: 26 | D66: 44 | E66: 1.3 | F66: 43.43 | G66: 911.2 | H66: 1.131 | I66: 1.241220369 | J66: 11640 | K66: 9739 | L66: 8966 | M66: 3.306 | N66: 146.2988463 | O66: 11.21728542 | P66: 14.83944057 | Q66: 14.87841771 | R66: 14.95990109 | S66: 9.292016838 | T66: 9.323419115 | U66: 9.389066905 | V66: =+V65 -> 0.5 | W66: 0.75 | X66: 1 | Y66: 11640 | Z66: 9739 | AA66: 8966 | AB66: 14126 | AC66: -5348 | AD66: 9236.4 | AE66: 0.3694079945 | AF66: Gas Natural | AG66: 54.3 | AH66: 0.5291710059
A67: WAR03 | B67: 0.61 | C67: 26 | D67: 44.33 | E67: 1.3 | F67: 43.75 | G67: 911.2 | H67: 1.131 | I67: 1.241220369 | J67: 11536 | K67: 9756 | L67: 8964 | M67: 3.306 | N67: 142.4492868 | O67: 11.34302104 | P67: 14.84386368 | Q67: 14.88213376 | R67: 14.96032137 | S67: 9.295580357 | T67: 9.326412981 | U67: 9.389405509 | V67: 0.5 | W67: 0.75 | X67: 1 | Y67: 11536 | Z67: 9756 | AA67: 8964 | AB67: 13943.33333 | AC67: -5144 | AD67: 9240.247619 | AE67: 0.3692541738 | AF67: Gas Natural | AG67: 54.3 | AH67: 0.5293914433
A68: WAR04 | B68: 0.68 | C68: 26 | D68: 44.55 | E68: 1.3 | F68: 43.97 | G68: 911.2 | H68: 1.131 | I68: 1.241220369 | J68: 11649 | K68: 9800 | L68: 8976 | M68: 3.306 | N68: 148.7904287 | O68: 11.23111634 | P68: 14.86991381 | Q68: 14.90949529 | R68: 14.99129902 | S68: 9.316567875 | T68: 9.348457039 | U68: 9.414362924 | V68: 0.5 | W68: 0.75 | X68: 1 | Y68: 11649 | Z68: 9800 | AA68: 8976 | AB68: 14151.16667 | AC68: -5346 | AD68: 9263.395238 | AE68: 0.3683314716 | AF68: Gas Natural | AG68: 54.3 | AH68: 0.5307176146
A69: WAR05 | B69: 0.62 | C69: 26 | D69: 44 | E69: 1.3 | F69: 43.43 | G69: 911.2 | H69: 1.131 | I69: 1.241220369 | J69: 11592 | K69: 9787 | L69: 8948 | M69: 3.306 | N69: 145.6902859 | O69: 11.2323737 | P69: 14.83946174 | Q69: 14.87827675 | R69: 14.95942117 | S69: 9.292033893 | T69: 9.323305545 | U69: 9.38868026 | V69: 0.5 | W69: 0.75 | X69: 1 | Y69: 11592 | Z69: 9787 | AA69: 8948 | AB69: 14075 | AC69: -5288 | AD69: 9240.257143 | AE69: 0.3692537932 | AF69: Gas Natural | AG69: 54.3 | AH69: 0.5293919889
A70: MOS01 | B70: 18.56 | C70: 28 | D70: 1.39 | E70: 4.9 | F70: 1.32 | G70: 37289 | H70: 0.465 | I70: 12.47016546 | J70: 10530 | K70: 9321 | L70: 8918 | M70: 21.406 | N70: 28.70014974 | O70: 116.9772733 | P70: 140.3107284 | Q70: 140.6964053 | R70: 141.0950462 | S70: 9.535136379 | T70: 9.566064352 | U70: 9.598031921 | V70: 0.5 | W70: 0.75 | X70: 1 | Y70: =+J70 -> 10530 | Z70: 9321 | AA70: 8918 | AB70: 12007.66667 | AC70: -3224 | AD70: 9060.009524 | AE70: 0.3766000456 | AF70: Diesel Oil | AG70: 72.6 | AH70: 0.6939988538
A74: 1) Consumo propio, ventas directas y pérdidas entre bornes de generador y el SMEC
A75: 2) Los valores en negrilla corresponden al 60%

Sheet Generacion
A4: GENERACION (MWh)
C7: 2010 | D7: 2011 | E7: 2012 | F7: 2013 | G7: 2014 | H7: 2015 | I7: 2016 | J7: 2017
A8: CENTRALES HIDROELECTRICAS
A9: CORANI | B9: COR1234 | C9: 280767.663 | D9: 317689.14 | E9: 325459.12 | F9: 373791.26 | G9: 371305.78 | H9: 377176.696 | I9: 214629.939 | J9: 284284.711
A10: SANTA ISABEL | B10: SIS12345 | C10: 418380.171 | D10: 477614.6 | E10: 485267.32 | F10: 555713.26 | G10: 552076.44 | H10: 560551.928 | I10: 330698.884 | J10: 431404.268
A11: ZONGO | B11: ZON1 | C11: 11345.116 | D11: 11062.147 | E11: 9730.236 | F11: 8366.923 | G11: 9230.836 | H11: 9970.278 | I11: 9497.004 | J11: 10212.422
A12: TIQUIMANI | B12: TIQ1 | C12: 8884.209 | D12: 15926.226 | E12: 12913.74 | F12: 11358.186 | G12: 10445.099 | H12: 12813.867 | I12: 6632.062 | J12: 11241.979
A13: BOTIJLACA | B13: BOT1 | C13: 7849.874 | D13: 8621.266 | E13: 8717.69 | F13: 8548.19 | G13: 6937.646 | H13: 8959.491 | I13: 5032.601 | J13: 8563.441
B14: BOT2 | C14: 6640.692 | D14: 7153.313 | E14: 7359.012 | F14: 7028.019 | G14: 5548.011 | H14: 7037.519 | I14: 3451.904 | J14: 6239.618
B15: BOT3 | C15: 21561.253 | D15: 20814.348 | E15: 22706.516 | F15: 22174.723 | G15: 20967.523 | H15: 23605.781 | I15: 18889.346 | J15: 20402.677
A16: CUTICUCHO | B16: CUT1 | C16: 7186.324 | D16: 9743.347 | E16: 9415.135 | F16: 6458.43 | G16: 5475.314 | H16: 14181.029 | I16: 4440.681 | J16: 9498.882
B17: CUT2 | C17: 6993.139 | D17: 9282.077 | E17: 8698.524 | F17: 5753.34 | G17: 4912.893 | H17: 12898.889 | I17: 5619.907 | J17: 9023.669
B18: CUT3 | C18: 6822.617 | D18: 9067.503 | E18: 8820.174 | F18: 6045.047 | G18: 5060.786 | H18: 13386.754 | I18: 5422.311 | J18: 8865.554
B19: CUT4 | C19: 5297.483 | D19: 6581.793 | E19: 6336.64 | F19: 4570.038 | G19: 3245.185 | H19: 6687.367091 | I19: 2561.439 | J19: 4531.527
B20: CUT5 | C20: 90321.68 | D20: 94885.142 | E20: 92591.82 | F20: 80968.934 | G20: 71783.653 | H20: 80462.043 | I20: 75993.779 | J20: 96164.228
A21: SANTA ROSA | B21: SRO1 | C21: 35381.828 | D21: 40391.101 | E21: 32300.108 | F21: 36699.026 | G21: 35041.322 | H21: 38808.311 | I21: 27181.952 | J21: 38544.048
B22: SRO2 | C22: 43128.714 | D22: 46044.359 | E22: 43194.46 | F22: 45291.725 | G22: 48557.09 | H22: 47305.845 | I22: 39690.658 | J22: 47225.398
A23: SAINANI | B23: SAI1 | C23: 66898.477 | D23: 71701.51 | E23: 68123.947 | F23: 70554.084 | G23: 15429.729 | H23: 23543.033 | I23: 53982.859 | J23: 69211.265
A24: CHURURAQUI | B24: CHU1 | C24: 63528.492 | D24: 66072.78 | E24: 69551.443 | F24: 71908.643 | G24: 64762.602 | H24: 71255.49 | I24: 53061.766 | J24: 68171.012
B25: CHU2 | C25: 62589.967 | D25: 67733.378 | E25: 64736.138 | F25: 72200.595 | G25: 62725.934 | H25: 67719.197 | I25: 53897.993 | J25: 66329.928
A26: HARCA | B26: HAR1 | C26: 79080.591 | D26: 83215.97 | E26: 78452.137 | F26: 86076.892 | G26: 78528.325 | H26: 81849.417 | I26: 63047.572 | J26: 79535.855
B27: HAR2 | C27: 77042.934 | D27: 78275.416 | E27: 73415.542 | F27: 79960.058 | G27: 77429.542 | H27: 80452.606 | I27: 61868.473 | J27: 81530.162
A28: CAHUA | B28: CAH1 | C28: 79039.576 | D28: 58254.009 | E28: 51281.208 | F28: 86457.891 | G28: 85493.886 | H28: 81648.602 | I28: 62691.475 | J28: 85854.238
B29: CAH2 | C29: 81435.837 | D29: 91507.437 | E29: 83285.34 | F29: 84764.018 | G29: 77185.931 | H29: 81079.113 | I29: 67549.633 | J29: 83617.593
A30: HUAJI | B30: HUA1 | C30: 95760.287 | D30: 95144.05 | E30: 95119.72 | F30: 105447.589 | G30: 99009.819 | H30: 86632.661 | I30: 79958.991 | J30: 91011.157
B31: HUA2 | C31: 93799.605 | D31: 98539.03 | E31: 94138.09 | F31: 99492.22 | G31: 99241.433 | H31: 93811.008 | I31: 82387.253 | J31: 99447.379
A32: MIGUILLA | B32: MIG1 | C32: 4114 | D32: 4554.105 | E32: 4812.643 | F32: 4552.424 | G32: 4384.409 | H32: 4376.905 | I32: 3466.108 | J32: 4191.576
B33: MIG2 | C33: 4195 | D33: 4563.411 | E33: 4781.625 | F33: 4698.227 | G33: 4197.793 | H33: 4145.267 | I33: 3329.45 | J33: 4038.616
A34: ANGOSTURA | B34: ANG1 | C34: 9271.1 | D34: 8656.585 | E34: 10232.769 | F34: 8655.151 | G34: 8364.82 | H34: 8059.284 | I34: 8299.026 | J34: 7068.212
B35: ANG2 | C35: 4843.5 | D35: 5139.198 | E35: 4981.526 | F35: 3998.696 | G35: 4087.838 | H35: 3992.585 | I35: 2863.16 | J35: 3531.556
B36: ANG3 | C36: 5760.916 | D36: 6575.517 | E36: 7386.07 | F36: 6891.603 | G36: 6808.925 | H36: 6644.116 | I36: 5656.743 | J36: 6833.087
A37: CHOQUETANGA | B37: CHO1 | C37: 12172.712 | D37: 11726.216 | E37: 12408.23 | F37: 12482.19 | G37: 11577.643 | H37: 11539.983 | I37: 9108.759 | J37: 10812.362
B38: CHO2 | C38: 14106.915 | D38: 13902.389 | E38: 15012.158 | F38: 15518.907 | G38: 14227.504 | H38: 14778.668 | I38: 11847.556 | J38: 13785.388
B39: CHO3 | C39: 11843.383 | D39: 11428.677 | E39: 12088.936 | F39: 12150.215 | G39: 11142.393 | H39: 11178.842 | I39: 9006.972 | J39: 10677.777
A40: CARABUCO | B40: CRB | C40: 43231.955 | D40: 41999.479 | E40: 43164.041 | F40: 45495.326 | G40: 43258.478 | H40: 41867.757 | I40: 36040.24 | J40: 41074.045
A41: CHOJLLA Antigua | B41: CHJ1y2 | C41: 5956.35675 | D41: 3270.249673 | E41: 5549.074273 | F41: 3766.921545 | G41: 4567.332535 | H41: 1658.238035 | I41: 38.66845 | J41: 0
A42: CHOJLLA | B42: CHJ | C42: 106123.258 | D42: 124388.162 | E42: 135330.642 | F42: 141958.0827 | G42: 127364.103 | H42: 130614.54 | I42: 50256.09 | J42: 127227.77
A43: YANACACHI | B43: YAN | C43: 190812.2633 | D43: 206067.001 | E43: 209706.071 | F43: 223487.3474 | G43: 70571.212 | H43: 211398.553 | I43: 155757.262 | J43: 179334.131
A44: KANATA | B44: KAN1 | C44: 14119.3 | D44: 19288.97 | E44: 20815.78 | F44: 16358.64 | G44: 19804.84 | H44: 17612.39 | I44: 12031.66 | J44: 10963.13
A45: KILPANI | B45: KIL123 | C45: 40270.455 | D45: 38528.401 | E45: 41587.582 | F45: 42148.482 | G45: 45154.621 | H45: 41357.006 | I45: 32860.883 | J45: 31306.787
A46: LANDARA | B46: LAN123 | C46: 14596.415 | D46: 17363.157 | E46: 17535.357 | F46: 18995.719 | G46: 22123.662 | H46: 18022.293 | I46: 14087.349 | J46: 14473.442
A47: PUNUTUMA | B47: PUN1 | C47: 16964.522 | D47: 17331.444 | E47: 18585.001 | F47: 16688.196 | G47: 17786.664 | H47: 18207.586 | I47: 16078.901 | J47: 15005.555
A48: QUEHATA | B48: QUE01 | C48: 3310.4 | D48: 4002.56 | E48: 6492.9 | F48: 7388.4 | G48: 7175.84 | H48: 8301.2 | I48: 2307.6 | J48: 3547
B49: QUE02 | D49: 51.81 | E49: 346.8 | F49: 0 | G49: 0 | I49: 2352.1 | J49: 3707.2
A50: SAN JACINTO | B50: SJA01 | H50: 2118.474 | I50: 5921.3628 | J50: 9940.8974
B51: SJA02 | H51: 1880.5392 | I51: 6106.089 | J51: 10262.133
A52: MISICUNI | B52: MIS | J52: 11172.226
A53: PARQUES EÓLICOS
A54: QOLLPANA | B54: QOL Fase I | F54: 36.5285 | G54: 8157.757 | H54: 11450.126 | I54: 13207.373 | J54: 12488.579
B55: QOL Fase II | I55: 21704.071 | J55: 47894.7
A57: PLANTAS SOLARES
A58: YUNCHARA | B58: YUN | J58: 1065.63625
A60: CENTRALES TERMOELECTRICAS
A61: GUARACACHI | B61: GCH01 | C61: 54977.58 | D61: 31424.37 | E61: 44186.28 | F61: 6585.96 | G61: 15638.4 | H61: 14091.3 | I61: 42919.2 | J61: 41459.7
B62: GCH02 | C62: 44343.57 | D62: 38362.5 | E62: 31007.91 | F62: 4921.44 | G62: 14575.08 | H62: 10209.6 | I62: 28229.76 | J62: 20603.04
B63: GCH04 | C63: 35434.59 | D63: 65185.068 | E63: 40516.368 | F63: 17730.18 | G63: 24451.464 | H63: 13814.244 | I63: 43634.928 | J63: 24144.996
B64: GCH06 | C64: 47583.18 | D64: 73021.77 | E64: 79926.345 | F64: 32721.12 | G64: 52400.7557 | H64: 49910.715 | I64: 73438.605 | J64: 47740.185
B65: GCH09 | C65: 304167.352 | D65: 362328.336 | E65: 345670.74 | F65: 479429.598 | G65: 420127.4714 | H65: 459226.692 | I65: 240047.46 | J65: 381288.42
B66: GCH10 | C66: 274064.728 | D66: 328187.052 | E66: 425317.902 | F66: 461289.348 | G66: 412122.1051 | H66: 378806.544 | I66: 386168.796 | J66: 365210.388
B67: GCH11 | C67: 386364.6331 | D67: 362853.2407 | E67: 215762.2583 | F67: 201328.7141 | G67: 301526.5525 | H67: 234237.2923 | I67: 299524.302 | J67: 149744.4793
B68: GCH12 | C68: 85.296 | D68: 1236.102 | E68: 369449.514 | F68: 616226.289 | G68: 523552.596 | H68: 544179.2599 | I68: 222713.652 | J68: 361213.692
A69: SANTA CRUZ | B69: SCZ01 | C69: 73485.585 | D69: 82841.6925 | E69: 69552.7875 | F69: 23800.9429 | G69: 44110.71 | H69: 44085.42 | I69: 76414.3515 | J69: 77133.69
B70: SCZ02 | C70: 86746.32 | D70: 105667.14 | E70: 63985.62 | F70: 16188.9 | G70: 29892.71113 | H70: 35185.5 | I70: 69334.6305 | J70: 64466.46
B71: UNA01 | G71: 10615.625 | H71: 16947.5075 | I71: 10655.04975 | J71: 11162.567
A72: EASBA | B72: SBU01 | I72: 708.844 | J72: 751.153
A73: ARANJUEZ | B73: ARJ01 | C73: 0 | D73: 1295.25873 | E73: 6370.205515 | F73: 1574.993684 | G73: 5457.598282 | H73: 903.1293569 | I73: 2065.398746 | J73: 511.0025
B74: ARJ02 | C74: 7078.176123 | D74: 6630.80579 | E74: 0 | F74: 0 | G74: 1826.328269 | H74: 911.2479539 | I74: 2494.435346 | J74: 148.1945
B75: ARJ03 | C75: 6933.803202 | D75: 3921.550401 | E75: 7512.44944 | F75: 1769.8755 | G75: 5453.138 | H75: 742.6815 | I75: 3046.812 | J75: 740.5125
B76: ARJ08 | C76: 128803.56 | D76: 132236.64 | E76: 116890.92 | F76: 106260.78 | G76: 105427.86 | H76: 83446.76 | I76: 101154.24 | J76: 139685.16
B77: ARJ09 | C77: 8515.644332 | D77: 9389.035841 | E77: 9982.834451 | F77: 5243.73067 | G77: 10782.3011 | H77: 8423.39897 | I77: 10825.28304 | J77: 697.12325
B78: ARJ11 | C78: 5377.490046 | D78: 6762.75858 | E78: 8208.257779 | F78: 9655.36312 | G78: 7515.1433 | H78: 4874.09304 | I78: 10874.30593 | J78: 657.711895
B79: ARJ12 | C79: 5023.210781 | D79: 6196.934516 | E79: 11548.43109 | F79: 11349.07458 | G79: 9975.93413 | H79: 7073.216074 | I79: 0 | J79: 0
B80: ARJ13 | C80: 2147.392315 | D80: 8851.283968 | E80: 10087.29019 | F80: 9758.3664 | G80: 4970.5612 | H80: 5371.6202 | I80: 0 | J80: 0
B81: ARJ14 | C81: 8526.900641 | D81: 10123.33607 | E81: 9538.652815 | F81: 2570.0208 | G81: 7007.9094 | H81: 0 | I81: 0 | J81: 0
B82: ARJ15 | C82: 7797.829538 | D82: 4892.938408 | E82: 11580.99053 | F82: 10493.6892 | G82: 9947.2014 | H82: 7564.2672 | I82: 8339.7396 | J82: 474.077
A83: KARACHIPAMPA | B83: KAR1 | C83: 80691.73504 | D83: 79540.578 | E83: 60267.49772 | F83: 84986.5836 | G83: 61003.53232 | H83: 79662.39755 | I83: 76545.15521 | J83: 41016.303
A84: KENKO | B84: KEN01 | C84: 46977.26562 | D84: 50444.30312 | E84: 50792.9475 | F84: 25340.75831 | G84: 43520.74519 | H84: 0 | I84: 1793.82 | J84: 18.81
B85: KEN02 | C85: 47451.323 | D85: 50578.20975 | E85: 52201.957 | F85: 20555.56487 | G85: 46932.1795 | H85: 29966.794 | I85: 14728.66919 | J85: 14455.24559
A86: VALLE HERMOSO | B86: VHE12345678 | C86: 412298.62 | D86: 375505.48 | E86: 441361.193 | F86: 438893.555 | G86: 458878.518 | H86: 260568.359 | I86: 431717.9446 | J86: 498992.928
A87: CARRASCO | B87: CAR123 | C87: 743118.8202 | D87: 616986.2671 | E87: 772580.2 | F87: 667630.61 | G87: 815783.94 | H87: 516330.15 | I87: 440398.86 | J87: 552699.29
A88: C.EL ALTO | B88: ALT01 | E88: 57810.7089 | F88: 107684.098 | G88: 108265.7625 | H88: 62901.0717 | I88: 100635.927 | J88: 49236.5229
B89: ALT02 | F89: 103575.9891 | G89: 74350.10655 | H89: 230006.7025 | I89: 213864.514 | J89: 148687.6958
A90: BULO BULO | B90: BUL01 | C90: 320717 | D90: 327166 | E90: 106480 | F90: 287973.534 | G90: 269807.618 | H90: 253280.231 | I90: 223504.631 | J90: 237695.821
B91: BUL02 | C91: 331746 | D91: 326073 | E91: 289542 | F91: 202260.81 | G91: 173568.66 | H91: 33037.909 | I91: 15850.489 | J91: 77027.986
B92: BUL03 | F92: 917.24762 | G92: 265758.5813 | H92: 313954.442 | I92: 125500.576 | J92: 239710.459
A93: GUABIRA | B93: GBE | C93: 58156.17 | D93: 64040.52 | E93: 64494.2 | F93: 79491 | G93: 65694 | H93: 62146 | I93: 50538 | J93: 29748
B94: IAG | J94: 3137
A95: ENTRE RIOS | B95: ERI01 | C95: 94768 | D95: 186730 | E95: 193238 | F95: 176801 | G95: 173128 | H95: 75240 | I95: 152450 | J95: 36192
B96: ERI02 | C96: 123773.2823 | D96: 193364 | E96: 193432 | F96: 175773 | G96: 165138 | H96: 85293 | I96: 168623 | J96: 52744
B97: ERI03 | C97: 109541.1268 | D97: 170825 | E97: 196674 | F97: 195325 | G97: 173443 | H97: 74301 | I97: 182321 | J97: 60409
B98: ERI04 | C98: 77401.001 | D98: 187411 | E98: 183871 | F98: 186743 | G98: 193663 | H98: 89367 | I98: 182872 | J98: 46175
A99: DEL SUR | B99: SUR01 | G99: 84605.7 | H99: 283458 | I99: 327520.8056 | J99: 321801.0224
B100: SUR02 | G100: 129537 | H100: 256045 | I100: 313178.5303 | J100: 283832.3403
B101: SUR03 | G101: 108702.3 | H101: 285112 | I101: 329847.8392 | J101: 326287.4248
B102: SUR04 | G102: 73180 | H102: 279769 | I102: 310140.643 | J102: 335050.7928
A103: WARNES | B103: WAR01 | H103: 198822 | I103: 327476 | J103: 341340.336
B104: WAR02 | H104: 104963 | I104: 303848 | J104: 232234.96
B105: WAR03 | H105: 135385 | I105: 334360 | J105: 332215.632
B106: WAR04 | H106: 75984 | I106: 328445 | J106: 319457.856
B107: WAR05 | H107: 91678 | I107: 330964 | J107: 332882.232
A108: ENDE GEN. | B108: MOX | D108: 17193.9211 | E108: 78175.6298 | F108: 59999.3057 | G108: 92959.208 | H108: 86494.6717 | I108: 89033.7611 | J108: 89110.9052
A109: Total Generación bruta | C109: 6085526.165 | D109: 6611423.366 | E109: 6940448.356 | F109: 7347749.589 | G109: 7836447.911 | H109: 8334811.495 | I109: 8759264.864 | J109: 8981304.931
A110: Unidades MDL
A111: GUARACACHI | B111: GCH09 | C111: 304167.352 | D111: 362328.336 | E111: 345670.74 | F111: 479429.598 | G111: 420127.4714 | H111: 459226.692 | I111: 240047.46 | J111: 381288.42
B112: GCH10 | C112: 274064.728 | D112: 328187.052 | E112: 425317.902 | F112: 461289.348 | G112: 412122.1051 | H112: 378806.544 | I112: 386168.796 | J112: 365210.388
B113: GCH12 | C113: 85.296 | D113: 1236.102 | E113: 369449.514 | F113: 616226.289 | G113: 523552.596 | H113: 544179.2599 | I113: 222713.652 | J113: 361213.692
A114: CHOJLLA | B114: CHJ | C114: 106123.258 | D114: 124388.162 | E114: 135330.642 | F114: 141958.0827 | G114: 127364.103 | H114: 130614.54 | I114: 50256.09 | J114: 127227.77
A115: YANACACHI | B115: YAN | C115: 190812.2633 | D115: 206067.001 | E115: 209706.071 | F115: 223487.3474 | G115: 70571.212 | H115: 211398.553 | I115: 155757.262 | J115: 179334.131
A116: Total Unidades MDL | C116: 875252.8973 | D116: 1022206.653 | E116: 1485474.869 | F116: 1922390.665 | G116: 1553737.487 | H116: 1724225.589 | I116: 1054943.26 | J116: 1414274.401
A119: Unidades LCMR
A120: Hidroelectricas | C120: 2151428.98 | D120: 2324157.274 | E120: 2322431.265 | F120: 2514863.619 | G120: 2232992.857 | H120: 2439591.151 | I120: 1715604.461 | J120: 2229863.901
A121: Eolicas | C121: 0 | D121: 0 | E121: 0 | F121: 36.5285 | G121: 8157.757 | H121: 11450.126 | I121: 34911.444 | J121: 60383.279
A122: Solares | C122: 0 | D122: 0 | E122: 0 | F122: 0 | G122: 0 | H122: 0 | I122: 0 | J122: 1065.63625
A123: Biomasa | C123: 58156.17 | D123: 64040.52 | E123: 64494.2 | F123: 79491 | G123: 76309.625 | H123: 79093.5075 | I123: 61901.89375 | J123: 44798.72
A124: Total Unidades LCMR | C124: 2209585.15 | D124: 2388197.794 | E124: 2386925.465 | F124: 2594391.147 | G124: 2317460.239 | H124: 2530134.785 | I124: 1812417.799 | J124: 2336111.537
